Workbook

Sheet Band 1
A1: RFP20232032
A2: Attachment I - Exhibit 1 - Band 1 Price Worksheet- Amendment 2
A4: Instructions:
A5: 1. Evaluation Plan Stage 3 Market Basket
A6: Per Attachment C, Stage 3 Cost Evaluation: below is the list of preselected items consisting of lab equipment and supplies.
A7: The Offeror must respond with the following information (in yellow highlighted cells) for items proposed:
A8: - Offeror's Catalog Number/SKU: Enter the catalog number/SKU for the item. Must correspond with the identifier/SKU listed in the Full-Line Catalog.
A9: - Manufacturer's Part Number: Enter the part number for the item.
A10: - Offeror's Unit of Measure (UOM): Enter the UOM for the offered item. (example: Case, Each, Box)
A11: - Offeror's QTY in UOM: Enter the quantity in UOM for the item. (Example: 50/Box)
A12: - Offeror's List Price: Enter the list price for the item. Must correspond with the list price in the Full-Line Catalog.
A13: Discount Percent Off List: Enter the discount applied to each market basket item. The discount should correspond with the comprehensive discount schedule you upload with your response (IPRO Question 2.4).Enter the single discount in Cell B20 that will be applied for all items in the Offeror's Full-Line Catalog. Discount Percent Off List shall be the same discount across the board for every item in the Full-Line Catalog.
A14: - Final Contract Price: This field should be the final price for the item when the percent discount is calculated. This is the final price that must be reflected in the Full-Line Catalog.
A16: Notes:
A17: If packaging size/quantities differ, the Lead State may identify an equivalent “unit price” for evaluation purposes.
A18: Offeror Shall submit pricing for at least 90% (360) of the 400 items below, or the proposal may be deemed non-responsive.
A19: Unit of measure is included in many of the items listed below for description purposes. It is recognized that UOM/QTY may be different from the item description provided.
A21: 3. 2. Evlauation Plan Stage 3 Volume Discounts
A22: Instructions:
A23: Provide tiered volume discounts based on master agreement sales volume; you may add as many lines as necessary.
A25: Offeror Name: | B25: VWR International, LLC
A27: 1. Evaluation Plan Stage 3 Market Basket
A28: No. | B28: Item | C28: Equivalent Item being Offered | D28: Offeror's Catalog Number/SKU | E28: Manufacturer's Part Number | F28: Offeror's UOM | G28: Offeror's QTY in UOM | H28: Offeror's List Price | I28: Discount % Off List | J28: Final Contract Price | K28: CATEGORY | L28: Notes
A29: Example | B29: BLUE MARBLES 1CM 100/BOX | D29: 1234 | E29: ABCD | F29: BOX | G29: 100 | H29: $30.00 | I29: 5% | J29: =(H29)-(H29*I29) -> $28.50 | L29: Marbles offered are 1.1CM
A30: 1 | B30: CHLOROFORM-D, 99.8 ATOM 100 ML | C30: X | D30: TCC0583-100G | E30: C0583-100G | F30: EA | G30: 1 | H30: $75.64 | I30: 28% | J30: =(H30)-(H30*I30) -> $54.66 | K30: Chloroform-[D1] | L30: https://us.vwr.com/store/product?keyword=TCC0583-100G
A31: 2 | B31: TISAB III CONC 1 PINT | C31: X | D31: 34111-727 | E31: 940911 | F31: EA | G31: 1 | H31: $321.37 | I31: 48% | J31: =(H31)-(H31*I31) -> $168.50 | K31: Electrolytes | L31: https://us.vwr.com/store/product?keyword=34111-727
A32: 3 | B32: BUFFER PH 7.00 475 ML | D32: BDH5052-500ML | E32: BDH5052-500ML | F32: EA | G32: 1 | H32: $88.31 | I32: 94% | J32: $4.87 | K32: Buffers | L32: https://us.vwr.com/store/product?keyword=BDH5052-500ML
A33: 4 | B33: BUFFER COLOR RED PH 4.00 500ML | D33: BDH5018-500ML | E33: BDH5018-500ML | F33: EA | G33: 1 | H33: $86.10 | I33: 94% | J33: $4.94 | K33: Buffers | L33: https://us.vwr.com/store/product?keyword=BDH5018-500ML
A34: 5 | B34: BUFFER COLRD BLUE PH 10 500ML | D34: BDH5072-500ML | E34: BDH5072-500ML | F34: EA | G34: 1 | H34: $130.64 | I34: 96% | J34: $5.27 | K34: Buffers | L34: https://us.vwr.com/store/product?keyword=BDH5072-500ML
A35: 6 | B35: BUFFER CLRD YEL PH 7.00 500ML | D35: BDH5046-500ML | E35: BDH5046-500ML | F35: EA | G35: 1 | H35: $69.03 | I35: 93% | J35: $4.85 | K35: Buffers | L35: https://us.vwr.com/store/product?keyword=BDH5046-500ML
A36: 7 | B36: POLYSORBATE 80 500 ML | C36: X | D36: BT219420-500ML | E36: 219420-500ML | F36: EA | G36: 1 | H36: $42.98 | I36: 30% | J36: $30.00 | K36: Polysorbate 80 | L36: https://us.vwr.com/store/product?keyword=BT219420-500ML
A37: 8 | B37: POLYSORBATE 20 500 ML | C37: X | D37: BT220180-500ML | E37: 220180-500ML | F37: EA | G37: 1 | H37: $40.86 | I37: 27% | J37: $30.00 | K37: Polysorbate 20 | L37: https://us.vwr.com/store/product?keyword=BT220180-500ML
A38: 9 | B38: POLYETHYLENE GLYCOL (PEG 8000) 1 KG | C38: X | D38: BT132420-500G | E38: 132420-500G | F38: EA | G38: 1 | H38: $47.29 | I38: 30% | J38: $33.02 | K38: Polyethylene glycol 8,000 | L38: https://us.vwr.com/store/product?keyword=BT132420-500G
A39: 10 | B39: FLUORESCAMINE 100MG | C39: X | D39: TCF0192-100MG | E39: F0192-100MG | F39: EA | G39: 1 | H39: $76.06 | I39: 22% | J39: $59.26 | K39: Fluorescamine | L39: https://us.vwr.com/store/product?keyword=TCF0192-100MG
A40: 11 | B40: HEXANES ACS 20L | D40: BDH1129-19L | E40: BDH1129-19L | F40: EA | G40: 1 | H40: $243.22 | I40: 68% | J40: $77.83 | K40: Hexane | L40: https://us.vwr.com/store/product?keyword=BDH1129-19L
A41: 12 | B41: XYLENES HIST GRD 1GA | D41: 89370-088 | E41: 89370-088 | F41: EA | G41: 1 | H41: $235.21 | I41: 90% | J41: $22.93 | K41: Xylene | L41: https://us.vwr.com/store/product?keyword=89370-088
A42: 13 | B42: BROMOBENZENE, 99% 250ML | D42: TS10668-2500 | E42: 10668-2500 | F42: EA | G42: 1 | H42: $49.76 | I42: 31% | J42: $34.29 | K42: Bromobenzene | L42: https://us.vwr.com/store/product?keyword=TS10668-2500
A43: 14 | B43: METHANOL CERT ACS/HPLC 4L | D43: BDH85800.400 | E43: BDH85800.400 | F43: EA | G43: 1 | H43: $158.85 | I43: 73% | J43: $43.22 | K43: Methanol | L43: https://us.vwr.com/store/product?keyword=BDH85800.400
A44: 15 | B44: TRICHLROACETIC ACID, 30%, 500ML | D44: RCR8688000500C | E44: R8688000-500C | F44: EA | G44: 1 | H44: $160.97 | I44: 55% | J44: $72.44 | K44: Trichloroacetic acid | L44: https://us.vwr.com/store/product?keyword=RCR8688000500C
A45: 16 | B45: REAGENTS SODIUM ACETATE ANHYDROUS 500G | D45: 97061-998 | E45: 97061-998 | F45: EA | G45: 1 | H45: $43.35 | I45: 20% | J45: $34.68 | K45: Sodium acetate | L45: https://us.vwr.com/store/product?keyword=97061-998
A46: 17 | B46: ETHYL ACETATE ACS-CERTIFIED 20L | C46: X | D46: EM-EX0240-3 | E46: EX0240-3 | F46: EA | G46: 1 | H46: $1,429.71 | I46: 89% | J46: $163.41 | K46: Ethyl acetate | L46: https://us.vwr.com/store/product?keyword=EM-EX0240-3
A47: 18 | B47: ETHYL ETHER ANHYDROUS R ACS 4L | D47: BDH1121-4LPC | E47: BDH1121-4LPC | F47: EA | G47: 1 | H47: $474.42 | I47: 82% | J47: $84.13 | K47: Diethyl ether | L47: https://us.vwr.com/store/product?keyword=BDH1121-4LPC
A48: 19 | B48: ACETONE CERTIFIED ACS 20L | D48: BDH1101-19L | E48: BDH1101-19L | F48: EA | G48: 1 | H48: $293.67 | I48: 75% | J48: $73.46 | K48: Acetone | L48: https://us.vwr.com/store/product?keyword=BDH1101-19L
A49: 20 | B49: TRIETHYLAMINE 500ML | C49: X | D49: EM-TX1200-5 | E49: TX1200-5 | F49: EA | G49: 1 | H49: $96.95 | I49: 59% | J49: $40.19 | K49: Triethylamine | L49: https://us.vwr.com/store/product?keyword=EM-TX1200-5
A50: 21 | B50: TETRAHYDROFURAN CERTIFIED 4L | C50: X | D50: EM-TX0280-7 | E50: TX0280-7 | F50: EA | G50: 1 | H50: $852.37 | I50: 81% | J50: $165.51 | K50: Tetrahydrofuran | L50: https://us.vwr.com/store/product?keyword=EM-TX0280-7
A51: 22 | B51: D-GLUCOSE, ANHYDROUS, RE 500GR | D51: BDH9230-500G | E51: BDH9230-500G | F51: EA | G51: 1 | H51: $77.72 | I51: 61% | J51: $29.95 | K51: D(+)-Glucose | L51: https://us.vwr.com/store/product?keyword=BDH9230-500G
A52: 23 | B52: BOVINE SERUM ALBUM FRACTION 100GR | D52: 97062-904 | E52: 97062-904 | F52: EA | G52: 1 | H52: $837.88 | I52: 67% | J52: $276.65 | K52: Proteins and Peptides | L52: https://us.vwr.com/store/product?keyword=97062-904
A53: 24 | B53: GOAT ANTI-RABBIT IGG H&L ANTIBODY (HRP) 2ML | C53: X | D53: 10167-134 | E53: GTX228416-01 | F53: EA | G53: 1 | H53: $231.64 | I53: 29% | J53: $163.54 | K53: Antibodies | L53: https://us.vwr.com/store/product?keyword=10167-134
A54: 25 | B54: TAQ DNA POLYMERASE, 5U/ΜL, 500 UNITS | D54: 76201-536 | E54: D4005 | F54: EA | G54: 1 | H54: $159.58 | I54: 10% | J54: $144.05 | K54: GOTAQ MDX TAQ POLYMERASE | L54: https://us.vwr.com/store/product?keyword=76201-536
A55: 26 | B55: BOTTLE TRYPTONE 500G | D55: 97063-390 | E55: 97063-390 | F55: EA | G55: 1 | H55: $188.49 | I55: 38% | J55: $117.68 | K55: Media for Microbiology | L55: https://us.vwr.com/store/product?keyword=97063-390
A56: 27 | B56: RPMI-1640 LIQUID MEDIA 500ML | C56: X | D56: 16777-145 | E56: SH30027.01 | F56: EA | G56: 1 | H56: $30.61 | I56: 84% | J56: $5.05 | K56: Cell Culture Media | L56: https://us.vwr.com/store/product?keyword=16777-145
A57: 28 | B57: L-GLUTAMINE 200MM LIQ 100ML | D57: VWRL0131-0100 | E57: VWRL0131-0100 | F57: EA | G57: 1 | H57: $53.64 | I57: 29% | J57: $37.93 | K57: L-GLUTAMINE 200MM (100 X) | L57: https://us.vwr.com/store/product?keyword=VWRL0131-0100
A58: 29 | B58: HYDROCHLORIC ACID REAG ACS 21/2L | C58: X | D58: EMD-HX0603-3 | E58: HX0603-3 | F58: EA | G58: 1 | H58: $93.04 | I58: 74% | J58: $23.92 | K58: Hydrochloric acid | L58: https://us.vwr.com/store/product?keyword=EMD-HX0603-3
A59: 30 | B59: AMMONIUM CHLORIDE ACS 500 G | C59: X | D59: EMAX1270-1 | E59: AX1270-1 | F59: EA | G59: 1 | H59: $106.44 | I59: 64% | J59: $38.09 | K59: Ammonium chloride | L59: https://us.vwr.com/store/product?keyword=EMAX1270-1
A60: 31 | B60: POTASSIUM HYDROXIDE ACS REAGENT 500G | D60: BDH9262-500G | E60: BDH9262-500G | F60: EA | G60: 1 | H60: $64.70 | I60: 60% | J60: $25.88 | K60: Potassium hydroxide | L60: https://us.vwr.com/store/product?keyword=BDH9262-500G
A61: 32 | B61: REAGENTS ASCORBIC ACID, 500 G | D61: 97061-074 | E61: 97061-074 | F61: EA | G61: 1 | H61: $157.00 | I61: 60% | J61: $63.48 | K61: L(+)-Ascorbic acid | L61: https://us.vwr.com/store/product?keyword=97061-074
A62: 33 | B62: LAB NOTEBOOK GRIDED 200 PAGE | D62: 82021-135 | E62: 82021-135 | F62: EA | G62: 1 | H62: $87.44 | I62: 77% | J62: $20.45 | K62: Notebooks | L62: https://us.vwr.com/store/product?keyword=82021-135
A63: 34 | B63: ABSORBENT PAD 100 SHEETS/PACK | D63: 56616-022 | E63: 56616-022 | F63: CS | G63: 100 | H63: $259.00 | I63: 78% | J63: $56.73 | K63: Surface Protectors | L63: https://us.vwr.com/store/product?keyword=56616-022
A64: 35 | B64: HIGH-VACUUM GREASE 5.3OZ | D64: 59344-055 | E64: 1597418 | F64: EA | G64: 1 | H64: $76.87 | I64: 70% | J64: $22.71 | K64: Lubricants | L64: https://us.vwr.com/store/product?keyword=59344-055
A65: 36 | B65: STAINLESS STEEL UTILITY CART | D65: 97005-266 | E65: 97005-266 | F65: EA | G65: 1 | H65: $706.42 | I65: 66% | J65: $237.87 | K65: Carts | L65: https://us.vwr.com/store/product?keyword=97005-266
A66: 37 | B66: 50 ML STERILE DISPOSABLE REAGENT RESERVOIRS 200/CS | D66: 89094-680 | E66: 89094-680 | F66: CS | G66: 200 | H66: $181.64 | I66: 66% | J66: $61.67 | K66: Reagent Reservoirs | L66: https://us.vwr.com/store/product?keyword=89094-680
A67: 38 | B67: CARBOY PP W / HANDLES AUTOCLAVABLE 10L | D67: 10755-102 | E67: 10755-102 | F67: EA | G67: 1 | H67: $283.30 | I67: 84% | J67: $44.68 | K67: Bottles | L67: https://us.vwr.com/store/product?keyword=10755-102
A68: 39 | B68: COLIFORM 120 ML VIAL 100/CS | C68: X | D68: 27614-453 | E68: 1705-100 | F68: CS | G68: 100 | H68: $139.11 | I68: 52% | J68: $66.38 | K68: Vials | L68: https://us.vwr.com/store/product?keyword=27614-453
A69: 40 | B69: MIST SPRAY BOTTLE PUMP 8 OZ | D69: 23609-182 | E69: 23609-182 | F69: PK | G69: 3 | H69: $53.70 | I69: 67% | J69: $17.65 | K69: Bottles | L69: https://us.vwr.com/store/product?keyword=23609-182
A70: 41 | B70: WIDE-MOUTH PLASTIC BOTTLE, HDPE, 500ML (16OZ); 12/PK | D70: 414004-114 | E70: 414004-114 | F70: PK | G70: 12 | H70: $203.80 | I70: 92% | J70: $15.59 | K70: Bottles | L70: https://us.vwr.com/store/product?keyword=414004-114
A71: 42 | B71: ROUND NARROW-MOUTH AMBER GLASS 1L BOTTLE WITH CLOSURE 12/CS | D71: 10861-816 | E71: 10861-816 | F71: CS | G71: 12 | H71: $323.65 | I71: 94% | J71: $20.23 | K71: Bottles | L71: https://us.vwr.com/store/product?keyword=10861-816
A72: 43 | B72: BENCHTOP LIQUID NITROGEN CONTAINER 1L | D72: 89057-548 | E72: 7075-15 | F72: EA | G72: 1 | H72: $303.67 | I72: 26% | J72: $224.16 | K72: Dewars and Cryogenic Vessels | L72: https://us.vwr.com/store/product?keyword=89057-548
A73: 44 | B73: 2.5 LITER BENCHTOP FREEZE DRYER PTFE 115V 60HZ | D73: 75999-788 | E73: 700202000 | F73: EA | G73: 1 | H73: $14,459.62 | I73: 35% | J73: $9,330.43 | K73: Freeze Dryers | L73: https://us.vwr.com/store/product?keyword=75999-788
A74: 45 | B74: PARAFILM 4 IN X 250FT/RL | C74: X | D74: 89031-575 | E74: DS4-250 | F74: EA | G74: 1 | H74: $127.38 | I74: 65% | J74: $44.79 | K74: General Purpose Sealing Films | L74: https://us.vwr.com/store/product?keyword=89031-575
A75: 46 | B75: HYDROGEN CARRIER GAS GENERATOR | C75: X | D75: 103549-768 | E75: 63-0100 | F75: EA | G75: 1 | H75: $9,502.25 | I75: 6% | J75: $8,923.92 | K75: Gas Generators | L75: https://us.vwr.com/store/product?keyword=103549-768
A76: 47 | B76: STERILE MICROSPATULAS, ROUNDED END 50/CS | D76: 89233-128 | E76: 89233-128 | F76: PK | G76: 300 | H76: $45.66 | I76: 60% | J76: $18.05 | K76: Spatulas | L76: https://us.vwr.com/store/product?keyword=89233-128
A77: 48 | B77: PHOSPHORIC ACID, ACS 85+ 500ML | D77: 97064-778 | E77: 97064-778 | F77: EA | G77: 1 | H77: $101.05 | I77: 60% | J77: $40.28 | K77: Orthophosphoric acid | L77: https://us.vwr.com/store/product?keyword=97064-778
A78: 49 | B78: MINI DRY BATH HEAT 15X1.5ML | D78: 76549-942 | E78: 76549-942 | F78: EA | G78: 1 | H78: $399.77 | I78: 47% | J78: $212.12 | K78: Block Heaters | L78: https://us.vwr.com/store/product?keyword=76549-942
A79: 50 | B79: UVP COMPACT AND HANDHELD UV LAMP | C79: X | D79: 10034-170 | E79: CLS-1625-100 | F79: EA | G79: 1 | H79: $515.59 | I79: 20% | J79: $414.87 | K79: Lights | L79: https://us.vwr.com/store/product?keyword=10034-170
A80: 51 | B80: NOVA MICROINCINERATOR 120V | C80: X | D80: 80094-500 | E80: 80094-500 | F80: EA | G80: 1 | H80: $953.30 | I80: 53% | J80: $449.54 | K80: Sterilizers | L80: https://us.vwr.com/store/product?keyword=80094-500
A81: 52 | B81: SINGLE JUNCTION GEL PH/ATC ELECTRODE | C81: X | D81: 76221-302 | E81: 35801-71 | F81: EA | G81: 1 | H81: $140.27 | I81: 38% | J81: $87.07 | K81: Electrodes | L81: https://us.vwr.com/store/product?keyword=76221-302
A82: 53 | B82: NEUTRODINE MOLECULAR FILTER | D82: 10746-776 | E82: 9577400 | F82: EA | G82: 1 | H82: $1,730.00 | I82: 26% | J82: $1,280.59 | K82: Fume Hoods and Enclosures | L82: https://us.vwr.com/store/product?keyword=10746-776
A83: 54 | B83: BENCHTOP 1100°C MUFFLE FURNACE 120VAC 50/60HZ | D83: 30608-020 | E83: FB1315M | F83: EA | G83: 1 | H83: $2,902.73 | I83: 51% | J83: $1,424.44 | K83: Ovens | L83: https://us.vwr.com/store/product?keyword=30608-020
A84: 55 | B84: INLET PRESSURE REGULATOR | D84: 55850-420 | E84: 55850-420 | F84: EA | G84: 1 | H84: $672.50 | I84: 69% | J84: $207.82 | K84: Gas Regulators | L84: https://us.vwr.com/store/product?keyword=55850-420
A85: 56 | B85: TUBING 0.065 FOR PERISTALTIC AND ICP PUMPS AND MANIFOLDS 12/PACK | D85: MFLX97618-38 | E85: MFLX97618-38 | F85: PK | G85: 12 | H85: $133.00 | I85: 43% | J85: $75.35 | K85: Tubing | L85: https://us.vwr.com/store/product?keyword=MFLX97618-38
A86: 57 | B86: GLASS BEADS SOLID 3MM 1LB/PK | D86: 26396-508 | E86: 100C | F86: PK | G86: 1 | H86: $46.23 | I86: 82% | J86: $8.28 | K86: Beads | L86: https://us.vwr.com/store/product?keyword=26396-508
A87: 58 | B87: PT 2500E HOMOGENIZER 115V | D87: 97057-700 | E87: 11010058 | F87: EA | G87: 1 | H87: $2,900.99 | I87: 27% | J87: $2,119.82 | K87: Homogenizers | L87: https://us.vwr.com/store/product?keyword=97057-700
A88: 59 | B88: LABORATORY BLENDER 40 OZ GL CONTR 120V60H | C88: X | D88: 470006-518 | E88: 700G | F88: EA | G88: 1 | H88: $439.00 | I88: 35% | J88: $286.11 | K88: Homogenizers | L88: https://us.vwr.com/store/product?keyword=470006-518
A89: 60 | B89: SAMPLE MILL WITH FEEDER 115V | C89: X | D89: 76359-402 | E89: 35010023 | F89: EA | G89: 1 | H89: $8,183.74 | I89: 28% | J89: $5,908.59 | K89: Mills | L89: https://us.vwr.com/store/product?keyword=76359-402
A90: 61 | B90: CLEAR GLASS MORTAR AND PESTLE SET 500ML 16OZ | D90: 76001-816 | E90: GMP16OZ | F90: EA | G90: 1 | H90: $56.07 | I90: 55% | J90: $25.23 | K90: Mortars and Pestles | L90: https://us.vwr.com/store/product?keyword=76001-816
A91: 62 | B91: LARGE TISSUE GRINDER 50ML 10/CS | D91: 47732-450 | E91: 47732-450 | F91: CS | G91: 10 | H91: $235.95 | I91: 72% | J91: $65.27 | K91: Homogenizers | L91: https://us.vwr.com/store/product?keyword=47732-450
A92: 63 | B92: NEOPRENE HOSE FOR BUNSEN BURNER | D92: 470344-234 | E92: CH0100A | F92: EA | G92: 1 | H92: $24.10 | I92: 37% | J92: $15.09 | K92: Heaters | L92: https://us.vwr.com/store/product?keyword=470344-234
A93: 64 | B93: SAND BATH HEATING MANTLE 100ML 115V | D93: KT720500-0101 | E93: 720500-0101 | F93: CS | G93: 1 | H93: $512.85 | I93: 55% | J93: $229.30 | K93: Heaters | L93: https://us.vwr.com/store/product?keyword=KT720500-0101
A94: 65 | B94: LOWER HEMISPHERICAL CLOTH HEATING MANTLE 120V 100ML | D94: 14201-166 | E94: LG-8800-102 | F94: EA | G94: 1 | H94: $304.35 | I94: 37% | J94: $191.46 | K94: Heaters | L94: https://us.vwr.com/store/product?keyword=14201-166
A95: 66 | B95: CIMAREC STIRRING HOTPLATE 100-120V | D95: 97027-352 | E95: SP194715 | F95: EA | G95: 1 | H95: $685.35 | I95: 51% | J95: =(H95)-(H95*I95) -> $334.71 | K95: Stirrers | L95: https://us.vwr.com/store/product?keyword=97027-352
A96: 67 | B96: MASTERCYCLER NEXUS GX2, 110 V | D96: 10119-852 | E96: 6338000020 | F96: EA | G96: 1 | H96: $7,953.50 | I96: 3% | J96: $7,683.33 | K96: Thermal Cyclers | L96: https://us.vwr.com/store/product?keyword=10119-852
A97: 68 | B97: DIVIDER GRID 1/2IN 81CELL 12PK | D97: 82007-154 | E97: 82007-154 | F97: EA | G97: 1 | H97: $4.24 | I97: 78% | J97: $0.92 | K97: Boxes | L97: https://us.vwr.com/store/product?keyword=82007-154
A98: 69 | B98: DRY BATH BLOCK, 28 X 1.5 ML | C98: X | D98: 10753-862 | E98: 88870103 | F98: EA | G98: 1 | H98: $173.17 | I98: 49% | J98: $88.38 | K98: Block Heaters | L98: https://us.vwr.com/store/product?keyword=10753-862
A99: 70 | B99: DIGITAL DRY BATHS/BLOCK HEATER 2BLOCK 120V | C99: X | D99: 75990-504 | E99: 6885-DB | F99: CS | G99: 1 | H99: $735.68 | I99: 32% | J99: $502.05 | K99: Block Heaters | L99: https://us.vwr.com/store/product?keyword=75990-504
A100: 71 | B100: DIGITAL THERMOMETER -200 TO 500C | D100: 23609-232 | E100: 23609-232 | F100: EA | G100: 1 | H100: $371.02 | I100: 60% | J100: $147.83 | K100: Thermometers | L100: https://us.vwr.com/store/product?keyword=23609-232
A101: 72 | B101: ANIMAL FEED NDL 18GX2 100/PK | H101: 0 | J101: 0
A102: 73 | B102: PARAPLAST TISSUE EMBEDDING MEDIUM 8X1KG/CS | C102: X | D102: 89370-812 | E102: 8331 | F102: CS | G102: 8 | H102: $199.97 | I102: 65% | J102: $70.90 | K102: Paraffin wax blended with synthetic polymers | L102: https://us.vwr.com/store/product?keyword=89370-812
A103: 74 | B103: FORMALIN DISPOSAL SYSTEM, VYTAC 5 GAL | D103: 16002-106 | E103: 5405 | F103: EA | G103: 1 | H103: $645.18 | I103: 74% | J103: $166.57 | K103: Stains | L103: https://us.vwr.com/store/product?keyword=16002-106
A104: 75 | B104: CELL LIFTER 100/CS | D104: 76036-004 | E104: 76036-004 | F104: CS | G104: 100 | H104: $140.86 | I104: 74% | J104: $36.40 | K104: Cell Scrapers | L104: https://us.vwr.com/store/product?keyword=76036-004
A105: 76 | B105: CELL SCRAPER INDIV WRAP 100/CS | D105: 10062-906 | E105: 10062-906 | F105: CS | G105: 100 | H105: $282.92 | I105: 84% | J105: $46.18 | K105: Cell Scrapers | L105: https://us.vwr.com/store/product?keyword=10062-906
A106: 77 | B106: CELL STRAINER STRL 40UM 50/CS | D106: 76327-098 | E106: 76327-098 | F106: PK | G106: 50 | H106: $196.05 | I106: 79% | J106: $41.57 | K106: Cell Strainers | L106: https://us.vwr.com/store/product?keyword=76327-098
A107: 78 | B107: BIOLITE 100MM TC DISH 200/CS | D107: 10861-680 | E107: 10861-680 | F107: CS | G107: 240 | H107: $572.64 | I107: 83% | J107: $94.55 | K107: Culture Dishes | L107: https://us.vwr.com/store/product?keyword=10861-680
A108: 79 | B108: L CELL SPREADER STRL 500PK | D108: 76207-748 | E108: 76207-748 | F108: CS | G108: 500 | H108: $149.62 | I108: 87% | J108: $19.18 | K108: Spreaders | L108: https://us.vwr.com/store/product?keyword=76207-748
A109: 80 | B109: 120 WATT SONIC DISMEMBRATOR 100V | C109: X | D109: 76193-588 | E109: 76193-588 | F109: EA | G109: 1 | H109: $3,804.88 | I109: 37% | J109: $2,412.40 | K109: Homogenizers | L109: https://us.vwr.com/store/product?keyword=76193-588
A110: 81 | B110: DISPOSABLE MICROTOME BLADES 50/CS | C110: X | D110: 25608-961 | E110: 4685 | F110: PK | G110: 50 | H110: $182.83 | I110: 44% | J110: $102.80 | K110: Microtomes and Microtome Assemblies | L110: https://us.vwr.com/store/product?keyword=25608-961
A111: 82 | B111: PLASTIC COVER SLIPS 1000/PK | D111: 48376-027 | E111: 48376-027 | F111: PK | G111: 1000 | H111: $149.03 | I111: 79% | J111: $30.96 | K111: Slides | L111: https://us.vwr.com/store/product?keyword=48376-027
A112: 83 | B112: IV TISSUE CASSETTES WHITE 1000/CS | C112: X | D112: 76214-192 | E112: M505-2T | F112: CS | G112: 1000 | H112: $374.28 | I112: 67% | J112: $125.23 | K112: Embedding Cassettes | L112: https://us.vwr.com/store/product?keyword=76214-192
A113: 84 | B113: MULTIPURPOSE SPECIMEN STORAGE CONTAINERS 64 OZ 50/CS | D113: 89009-670 | E113: 89009-670 | F113: CS | G113: 50 | H113: $496.99 | I113: 80% | J113: $97.87 | K113: Sample Containers | L113: https://us.vwr.com/store/product?keyword=89009-670
A114: 85 | B114: NX70 30MM SPECIMEN CHUCKS BLUE | D114: 89497-088 | E114: 715890 | F114: EA | G114: 1 | H114: $103.83 | I114: 53% | J114: $48.79 | K114: Microtomes and Microtome Assemblies | L114: https://us.vwr.com/store/product?keyword=89497-088
A115: 86 | B115: FIBERBOARD STORAGE BOXES 12 PACK | C115: X | D115: 89214-750 | E115: 89214-750 | F115: EA | G115: 1 | H115: $2.78 | I115: 62% | J115: $1.06 | K115: Boxes | L115: https://us.vwr.com/store/product?keyword=89214-750
A116: 87 | B116: DEWAR FLSK STNDRD BASE 1000ML | C116: X | D116: 89057-570 | E116: 7078-10 | F116: EA | G116: 1 | H116: $761.90 | I116: 33% | J116: $513.55 | K116: Dewars and Cryogenic Vessels | L116: https://us.vwr.com/store/product?keyword=89057-570
A117: 88 | B117: ISOTEMP 5.5CUBIC FEET 120V/60HZ | D117: 76514-186 | E117: 76514-186 | F117: EA | G117: 1 | H117: $1,710.30 | I117: 21% | J117: $1,342.68 | K117: Freezers | L117: https://us.vwr.com/store/product?keyword=76514-186
A118: 89 | B118: ISOTEMP -86C 20 CUBIC FEET 115V | D118: 76514-176 | E118: 76514-176 | F118: EA | G118: 1 | H118: $12,360.77 | I118: 23% | J118: $9,503.21 | K118: Freezers | L118: https://us.vwr.com/store/product?keyword=76514-176
A119: 90 | B119: FREEZING CONTAINER HOLDS 18 TUBES | D119: 414004-284 | E119: 414004-284 | F119: EA | G119: 1 | H119: $122.20 | I119: 66% | J119: $41.10 | K119: Coolers | L119: https://us.vwr.com/store/product?keyword=414004-284
A120: 91 | B120: NAPCO 8000 HEPA FILTER | D120: 10065-492 | E120: 760175 | F120: EA | G120: 1 | H120: $160.08 | I120: 50% | J120: $80.57 | K120: Incubators | L120: https://us.vwr.com/store/product?keyword=10065-492
A121: 92 | B121: FLASKSCRUBBER GLASSWARE WASHER 115 V, 50/60 HZ | C121: X | D121: 76420-708 | E121: 411001000 | F121: EA | G121: 1 | H121: $15,620.00 | I121: 20% | J121: $12,421.02 | K121: Glassware Washers | L121: https://us.vwr.com/store/product?keyword=76420-708
A122: 93 | B122: PIPET WASHER-RINSER HDPE 24IN | D122: 16550-007 | E122: F17131-0024 | F122: EA | G122: 1 | H122: $585.04 | I122: 51% | J122: $287.08 | K122: Pipettes | L122: https://us.vwr.com/store/product?keyword=16550-007
A123: 94 | B123: LABSOLUTION DETERGENT 10 LBS | D123: 21851-130 | E123: 4422000 | F123: EA | G123: 1 | H123: $219.00 | I123: 31% | J123: $151.95 | K123: Cleaning Agents | L123: https://us.vwr.com/store/product?keyword=21851-130
A124: 95 | B124: SPARKLEEN I MANUAL WASH 3.25LB BOX | D124: EM-EX0995-1 | E124: EX0995-1 | F124: EA | G124: 1 | H124: $108.96 | I124: 36% | J124: $69.22 | K124: Cleaning Agents | L124: https://us.vwr.com/store/product?keyword=EM-EX0995-1
A125: 96 | B125: 50 TS MICROPLATE WASHER | D125: 89429-526 | E125: 0310-5363 | F125: EA | G125: 1 | H125: $16,446.58 | I125: 21% | J125: $13,042.86 | K125: Microplate Washers | L125: https://us.vwr.com/store/product?keyword=89429-526
A126: 97 | B126: BTL DROP-DISP LDPE 30ML 12/PK | C126: X | D126: 13197-102 | E126: F11637-0001 | F126: PK | G126: 12 | H126: $49.35 | I126: 75% | J126: $12.40 | K126: Bottles | L126: https://us.vwr.com/store/product?keyword=13197-102
A127: 98 | B127: POLYWEAR SMOOTH GOWNS: BULK/INDIVIDUALLY BAGGED BLUE LARGE 100/CS | C127: X | D127: 76462-942 | E127: 6033C35 | F127: CS | G127: 75 | H127: $71.58 | I127: 49% | J127: $36.40 | K127: Disposable Garments | L127: https://us.vwr.com/store/product?keyword=76462-942
A128: 99 | B128: CIDEHOL 70 ISOPROPYL ALCOHOL SOLUTION 1 GAL | C128: X | D128: 89108-162 | E128: 89108-162 | F128: CS | G128: 4 | H128: $294.35 | I128: 51% | J128: $145.35 | K128: Cleaning Agents | L128: https://us.vwr.com/store/product?keyword=89108-162
A129: 100 | B129: AQUATRAK SHOE COVERS 150/CS | D129: 414004-646 | E129: 414004-646 | F129: CS | G129: 150 | H129: $135.12 | I129: 86% | J129: $18.45 | K129: Disposable Garments | L129: https://us.vwr.com/store/product?keyword=414004-646
A130: 101 | B130: HEPA FILTER 99.997% EFFICIENT | C130: X | D130: 76436-630 | E130: ALEAPFILTER | F130: PK | G130: 1 | H130: $56.70 | I130: 34% | J130: $37.49 | K130: Filters | L130: https://us.vwr.com/store/product?keyword=76436-630
A131: 102 | B131: MY MODEL PCR CLEANPREP DEAD AIR BOX ENCLOSURE | D131: 10783-132 | E131: 10783-132 | F131: EA | G131: 1 | H131: $3,523.60 | I131: 35% | J131: $2,283.45 | K131: Fume Hoods and Enclosures | L131: https://us.vwr.com/store/product?keyword=10783-132
A132: 103 | B132: NONVENTILATED PCR AND TISSUE CULTURE ENCLOSURES 115V | C132: X | D132: 10783-132 | E132: 10783-132 | F132: EA | G132: 1 | H132: $3,523.60 | I132: 35% | J132: $2,283.45 | K132: Fume Hoods and Enclosures | L132: https://us.vwr.com/store/product?keyword=10783-132
A133: 104 | B133: BASE PAIR 10 NMOL SCALE | D133: 101229-752 | E133: S1327S | F133: EA | G133: 1 | H133: $111.72 | I133: 2% | J133: $109.71 | K133: Nucleic Acid Reagents | L133: https://us.vwr.com/store/product?keyword=101229-752
A134: 105 | B134: TYPE A2 BIOLOGICAL SAFETY CABINET, 120V 50/60HZ | D134: 76319-220 | E134: 302380101 | F134: EA | G134: 1 | H134: $15,570.00 | I134: 31% | J134: $10,709.52 | K134: Fume Hoods and Enclosures | L134: https://us.vwr.com/store/product?keyword=76319-220
A135: 106 | B135: 1300 VALVE FOR TYPE A2 BIOLOGICAL SAFETY CABINET | H135: 0 | J135: 0
A136: 107 | B136: ISOTEMP 4100R20 REF BATH-115V | D136: 89202-910 | E136: 89202-910 | F136: EA | G136: 1 | H136: $2,050.73 | I136: 32% | J136: $1,392.90 | K136: Circulating Thermostats | L136: https://us.vwr.com/store/product?keyword=89202-910
A137: 108 | B137: ISOTEMP 5L GENERAL PURPOSE BATH | D137: 76308-834 | E137: 76308-834 | F137: EA | G137: 1 | H137: $1,002.45 | I137: 32% | J137: $683.98 | K137: Baths | L137: https://us.vwr.com/store/product?keyword=76308-834
A138: 109 | B138: PRECISION 15L SHAKING BATH | C138: X | D138: 10805-308 | E138: TSSWB15 | F138: EA | G138: 1 | H138: $3,621.94 | I138: 27% | J138: $2,647.30 | K138: Baths | L138: https://us.vwr.com/store/product?keyword=10805-308
A139: 110 | B139: ARCTIC A10 REFRIGERATED CIRCULATORS | D139: 89202-966 | E139: 89202-966 | F139: EA | G139: 1 | H139: $4,326.64 | I139: 34% | J139: $2,867.06 | K139: Circulating Thermostats | L139: https://us.vwr.com/store/product?keyword=89202-966
A140: 111 | B140: SILICON OIL 500ML | C140: X | D140: BT129230-500G | E140: 129230-500G | F140: EA | G140: 1 | H140: $110.29 | I140: 32% | J140: $75.18 | K140: Silicone oil | L140: https://us.vwr.com/store/product?keyword=BT129230-500G
A141: 112 | B141: JAR WIDEMOUTH PP 16OZ/500ML 6/PK | D141: 89094-108 | E141: 89094-108 | F141: CS | G141: 24 | H141: $345.76 | I141: 73% | J141: $92.05 | K141: Bottles | L141: https://us.vwr.com/store/product?keyword=89094-108
A142: 113 | B142: VORTEX MIXER ANALOG 120V | D142: 10153-838 | E142: 10153-838 | F142: EA | G142: 1 | H142: $651.56 | I142: 73% | J142: $174.35 | K142: Shakers and Mixers | L142: https://us.vwr.com/store/product?keyword=10153-838
A143: 114 | B143: RT BASIC MAGNETIC STIRRER SM 120V | D143: 10054-162 | E143: 88880007 | F143: EA | G143: 1 | H143: $356.97 | I143: 49% | J143: $182.22 | K143: Stirrers | L143: https://us.vwr.com/store/product?keyword=10054-162
A144: 115 | B144: POWER OVERHEAD STIRRER 60L 120V | C144: X | D144: 76288-172 | E144: F201A0150 | F144: EA | G144: 1 | H144: $2,542.12 | I144: 35% | J144: $1,651.95 | K144: Stirrers | L144: https://us.vwr.com/store/product?keyword=76288-172
A145: 116 | B145: LSE PLATFORM ROCKER 115V | D145: 76200-230 | E145: 6703 | F145: EA | G145: 1 | H145: $1,073.98 | I145: 36% | J145: $687.24 | K145: Shakers and Mixers | L145: https://us.vwr.com/store/product?keyword=76200-230
A146: 117 | B146: MAXQ2508 DUAL-ACTION ORBITAL RECIPROCATING SHAKER 120V | C146: X | D146: 76311-660 | E146: SK2000 | F146: EA | G146: 1 | H146: $4,890.31 | I146: 26% | J146: $3,605.26 | K146: Shakers and Mixers | L146: https://us.vwr.com/store/product?keyword=76311-660
A147: 118 | B147: MICROPLATE SHKER 120V/US PLG | C147: X | D147: 76417-536 | E147: 88882005 | F147: EA | G147: 1 | H147: $1,135.24 | I147: 27% | J147: $828.73 | K147: Shakers and Mixers | L147: https://us.vwr.com/store/product?keyword=76417-536
A148: 119 | B148: VORTEXER ACC 3IN HEAD W/ COVER | C148: X | D148: 89137-802 | E148: 480100 | F148: CS | G148: 1 | H148: $79.49 | I148: 43% | J148: $45.23 | K148: Shakers and Mixers | L148: https://us.vwr.com/store/product?keyword=89137-802
A149: 120 | B149: 50ML ERLENMEYER CLAMP | D149: 76407-138 | E149: 76407-138 | F149: EA | G149: 1 | H149: $42.30 | I149: 36% | J149: $27.09 | K149: Shakers and Mixers | L149: https://us.vwr.com/store/product?keyword=76407-138
A150: 121 | B150: EPPENDORF 5430 CENTRIFUGE 120V | C150: X | D150: 75875-084 | E150: 22620576 | F150: EA | G150: 1 | H150: $8,975.03 | I150: 37% | J150: $5,679.28 | K150: Centrifuges | L150: https://us.vwr.com/store/product?keyword=75875-084
A151: 122 | B151: CORNING MINI CENTRIFUGE | C151: X | D151: 76163-552 | E151: 6770 | F151: CS | G151: 1 | H151: $390.89 | I151: 29% | J151: $278.05 | K151: Centrifuges | L151: https://us.vwr.com/store/product?keyword=76163-552
A152: 123 | B152: SORVALL ST8, 120V | D152: 76533-880 | E152: 76533-880 | F152: EA | G152: 1 | H152: $2,760.15 | I152: 30% | J152: $1,943.54 | K152: Centrifuges | L152: https://us.vwr.com/store/product?keyword=76533-880
A153: 124 | B153: LYNX 4000 200-240V 50/60 HZ EA | C153: X | D153: BKB14535 | E153: B14535 | F153: EA | G153: 1 | H153: $45,911.97 | I153: 25% | J153: $34,411.76 | K153: Centrifuges | L153: https://us.vwr.com/store/product?keyword=BKB14535
A154: 125 | B154: ROTOR LYNX F14-6X250Y EA | C154: X | D154: BK363934 | E154: 363934 | F154: EA | G154: 1 | H154: $12,007.52 | I154: 24% | J154: $9,106.96 | K154: Centrifuges | L154: https://us.vwr.com/store/product?keyword=BK363934
A155: 126 | B155: F15-8X50C FIBERLITE ROTOR | D155: 97040-276 | E155: 75003663 | F155: EA | G155: 1 | H155: $5,827.79 | I155: 43% | J155: $3,343.84 | K155: Centrifuges | L155: https://us.vwr.com/store/product?keyword=97040-276
A156: 127 | B156: CENTRIFUGE TUBE 500ML 6/PK | D156: 47735-696 | E156: 47735-696 | F156: CS | G156: 24 | H156: $399.37 | I156: 61% | J156: $155.21 | K156: Bottles | L156: https://us.vwr.com/store/product?keyword=47735-696
A157: 128 | B157: COLIFORM TST VIAL 65X120 100CS | C157: X | D157: 66175-105 | E157: 1700-100 | F157: CS | G157: 100 | H157: $146.46 | I157: 48% | J157: $76.44 | K157: Vials | L157: https://us.vwr.com/store/product?keyword=66175-105
A158: 129 | B158: DIPPER POLYETHYLENE 6FT | D158: 76210-694 | E158: 106515 | F158: EA | G158: 1 | H158: $282.82 | I158: 80% | J158: $56.61 | K158: Samplers | L158: https://us.vwr.com/store/product?keyword=76210-694
A159: 130 | B159: SMPL VIAL SCRW CP 2 DR 144/PK | D159: 66011-041 | E159: 66011-041 | F159: PK | G159: 144 | H159: $231.63 | I159: 94% | J159: =(H159)-(H159*I159) -> $13.44 | K159: Vials | L159: https://us.vwr.com/store/product?keyword=66011-041
A160: 131 | B160: BAG SPECIMENBIOHAZARD 6X9INCH 500CS | C160: X | D160: 10497-176 | E160: 10497-176 | F160: CS | G160: 1000 | H160: $225.96 | I160: 60% | J160: $90.46 | K160: Bags | L160: https://us.vwr.com/store/product?keyword=10497-176
A161: 132 | B161: LANCET PURP 30GAUGE X1.5MM 200PK RX | C161: X | D161: 10804-085 | E161: AT1022 | F161: BX | G161: 100 | H161: $29.65 | I161: 38% | J161: $18.24 | K161: Blood Lancets | L161: https://us.vwr.com/store/product?keyword=10804-085
A162: 133 | B162: NASCO WHIRL-PAK PE BAGS FOR CHLORINATED WATER 100/PK | C162: X | D162: 11216-780 | E162: B01254WA | F162: PK | G162: 100 | H162: $219.78 | I162: 71% | J162: $64.09 | K162: Bags | L162: https://us.vwr.com/store/product?keyword=11216-780
A163: 134 | B163: BD VACUTAINER PLASTIC BLOOD COLLECTION TUBE 10ML 100/PK | D163: BD367874 | E163: 367874 | F163: PK | G163: 100 | H163: $108.20 | I163: 46% | J163: $58.76 | K163: Clinical Diagnostic Systems | L163: https://us.vwr.com/store/product?keyword=BD367874
A164: 135 | B164: BD VACUTAINER BLOOD COLLECTION SERUM SEPARATION TUBE 5ML 100/PK | D164: BD367986 | E164: 367986 | F164: PK | G164: 100 | H164: $208.10 | I164: 75% | J164: $52.89 | K164: Clinical Diagnostic Systems | L164: https://us.vwr.com/store/product?keyword=BD367986
A165: 136 | B165: BD VACUTAINER SAFETY-LOK BLOOD COLLECTION SETS 21 GAUGE 0.75INCH 50/PK | D165: BD-367296 | E165: 367296 | F165: PK | G165: 50 | H165: $191.05 | I165: 53% | J165: $90.18 | K165: VACUTAINER* Safety-Lok* Blood Collection Set | L165: https://us.vwr.com/store/product?keyword=BD-367296
A166: 137 | B166: BCTC PLUS AEROBI/F MEDIA 50/PK | H166: 0 | J166: 0
A167: 138 | B167: 4OZ POLYPROPYLENE URINE CONTAINER 100/CS | D167: 82030-366 | E167: 82030-366 | F167: CS | G167: 300 | H167: $320.80 | I167: 78% | J167: $70.52 | K167: Sample Containers | L167: https://us.vwr.com/store/product?keyword=82030-366
A168: 139 | B168: SPECIMEN CUP 90ML /53MM ORANGE CAP 400/CS | D168: 10803-972 | E168: 10803-972 | F168: CS | G168: 400 | H168: $381.44 | I168: 79% | J168: $79.70 | K168: Sample Containers | L168: https://us.vwr.com/store/product?keyword=10803-972
A169: 140 | B169: STERILE 2-PLY ALCOHOL PREP PAD 200/PK | D169: 100489-216 | E169: 71005-20 | F169: PK | G169: 200 | H169: $9.87 | I169: 47% | J169: $5.27 | K169: Cleaning Agents | L169: https://us.vwr.com/store/product?keyword=100489-216
A170: 141 | B170: COTTON-TIPPED PLASTIC-SHAFT STERILE APPLICATORS 1000/CS | D170: 89031-270 | E170: 89031-270 | F170: PK | G170: 1000 | H170: $56.29 | I170: 81% | J170: $10.86 | K170: Swabs | L170: https://us.vwr.com/store/product?keyword=89031-270
A171: 142 | B171: HOLLOW FIBER FILTER .2MIC | D171: 26280-025 | E171: 26280-025 | F171: EA | G171: 1 | H171: $198.53 | I171: 66% | J171: $67.30 | K171: Filters | L171: https://us.vwr.com/store/product?keyword=26280-025
A172: 143 | B172: A10 UV LAMP FOR WATER PURIFICATION SYSTEMS | C172: X | D172: 89204-400 | E172: LC210-02 | F172: EA | G172: 1 | H172: $776.40 | I172: 42% | J172: $453.34 | K172: Lights | L172: https://us.vwr.com/store/product?keyword=89204-400
A173: 144 | B173: DIGESTION SYSTEM BOILING ROD | D173: 30620-504 | E173: 303334-0003 | F173: CS | G173: 6 | H173: $167.29 | I173: 47% | J173: $88.35 | K173: Stirrers | L173: https://us.vwr.com/store/product?keyword=30620-504
A174: 145 | B174: UVP SI-950 STERILIZING STANDARD INCUBATOR, 26.9 L, STAINLESS STEEL | D174: 14236-064 | E174: 95-0358-01 | F174: EA | G174: 1 | H174: $3,909.90 | I174: 50% | J174: $1,954.95 | K174: Incubators | L174: https://us.vwr.com/store/product?keyword=14236-064
A175: 146 | B175: FORMA 3960 SERIES ENVIRONMENTAL CHAMBER, 821.2 L, STAINLESS STEEL | D175: 10204-776 | E175: 7000-33-1 | F175: EA | G175: 1 | H175: $49,866.33 | I175: 43% | J175: $28,352.94 | K175: Testing Chambers | L175: https://us.vwr.com/store/product?keyword=10204-776
A176: 147 | B176: HERA VIOS 160I CO2 SST TC 120V | D176: 76459-168 | E176: 51033547 | F176: EA | G176: 1 | H176: $12,124.28 | I176: 26% | J176: $8,978.55 | K176: Incubators | L176: https://us.vwr.com/store/product?keyword=76459-168
A177: 148 | B177: ISOTEMP DH CO2 IR 120V DECON | C177: X | D177: 76459-166 | E177: 51033546 | F177: EA | G177: 1 | H177: $14,398.60 | I177: 30% | J177: $10,090.83 | K177: Incubators | L177: https://us.vwr.com/store/product?keyword=76459-166
A178: 149 | B178: MIDI 40 INLET FILTERS | D178: MSPP-770001TS | E178: 770001 | F178: EA | G178: 1 | H178: $23.38 | I178: 14% | J178: $20.15 | K178: Filters | L178: https://us.vwr.com/store/product?keyword=MSPP-770001TS
A179: 150 | B179: GRAVITY CONVECTION OVEN | D179: 89511-404 | E179: 89511-404 | F179: EA | G179: 1 | H179: $3,030.75 | I179: 55% | J179: $1,355.68 | K179: Ovens | L179: https://us.vwr.com/store/product?keyword=89511-404
A180: 151 | B180: PRECISION COMPACT GRVTY OVEN 1.7 120V | D180: 97018-372 | E180: PR305225G | F180: EA | G180: 1 | H180: $1,914.64 | I180: 42% | J180: $1,107.72 | K180: Ovens | L180: https://us.vwr.com/store/product?keyword=97018-372
A181: 152 | B181: FURNACE 120VAC 50/60HZ | C181: X | D181: 75846-378 | E181: FO-200CR | F181: EA | G181: 1 | H181: $3,248.50 | I181: 21% | J181: $2,565.24 | K181: Ovens | L181: https://us.vwr.com/store/product?keyword=75846-378
A182: 153 | B182: BUCHI ROTAVAPOR R-300 | C182: X | D182: 10023-926 | E182: 11R300252V002 | F182: EA | G182: 1 | H182: $9,162.69 | I182: 28% | J182: $6,571.27 | K182: Evaporators | L182: https://us.vwr.com/store/product?keyword=10023-926
A183: 154 | B183: AIR REFLUX COLUMN, 14/20 JOINTS, MICROSCALE | D183: 60004-122 | E183: C221420 | F183: EA | G183: 1 | H183: $44.03 | I183: 62% | J183: $16.61 | K183: Condensers | L183: https://us.vwr.com/store/product?keyword=60004-122
A184: 155 | B184: KJEL-SORB TM SOL 4LITER | C184: X | D184: 101203-002 | E184: 1267-4L | F184: EA | G184: 1 | H184: $77.60 | I184: 63% | J184: $28.39 | K184: BORIC ACID 4% INDICATING 4L | L184: https://us.vwr.com/store/product?keyword=101203-002
A185: 156 | B185: VAC CONC W/PUMP MDL 5301 115V | D185: 53512-624 | E185: 22820109 | F185: EA | G185: 1 | H185: $17,845.10 | I185: 43% | J185: $10,213.52 | K185: Concentrators | L185: https://us.vwr.com/store/product?keyword=53512-624
A186: 157 | B186: FLTR PROWEIGH FOR TSS 100/PK | D186: 76436-922 | E186: F93442MM | F186: PK | G186: 100 | H186: $124.98 | I186: 11% | J186: $111.64 | K186: Filters | L186: https://us.vwr.com/store/product?keyword=76436-922
A187: 158 | B187: ULTRAFREE-MC 0VV 100/PK | H187: 0 | J187: 0
A188: 159 | B188: FLTR PPR GR1 9CM 100/PK | C188: X | D188: 28306-095 | E188: 28306-095 | F188: PK | G188: 100 | H188: $43.81 | I188: 79% | J188: $9.05 | K188: Filters | L188: https://us.vwr.com/store/product?keyword=28306-095
A189: 160 | B189: FLTR BTLTOP 45MM 500ML 12/CS | D189: 28199-307 | E189: 291-4520 | F189: CS | G189: 12 | H189: $215.05 | I189: 41% | J189: $126.99 | K189: Filters | L189: https://us.vwr.com/store/product?keyword=28199-307
A190: 161 | B190: HEPA-VENT 10/PK | D190: 28137-860 | E190: 6723-5000 | F190: PK | G190: 10 | H190: $189.89 | I190: 55% | J190: $85.46 | K190: Filters | L190: https://us.vwr.com/store/product?keyword=28137-860
A191: 162 | B191: AMICN ULTRA CNTRFUGL 15ML 24PK | D191: 89131-972 | E191: MAP003C36 | F191: PK | G191: 6 | H191: $97.48 | I191: 35% | J191: $63.29 | K191: Filters | L191: https://us.vwr.com/store/product?keyword=89131-972
A192: 163 | B192: BINDER-FREE GLASS MICROFIBER FILTERS GF/F CIRCLES 100/PACK | D192: 28497-925 | E192: 1825-025 | F192: PK | G192: 100 | H192: $187.16 | I192: 49% | J192: $94.70 | K192: Filters | L192: https://us.vwr.com/store/product?keyword=28497-925
A193: 164 | B193: MF-MILLIPORE MEMBRANE FILTER, 0.45 ΜM 100/PACK | C193: X | D193: 28148-584 | E193: 63069 | F193: PK | G193: 100 | H193: $218.84 | I193: 37% | J193: $137.98 | K193: Filters | L193: https://us.vwr.com/store/product?keyword=28148-584
A194: 165 | B194: STERILE SYRINGE FILTERS CA,0.8UM,25MM 50/CS | D194: 10218-474 | E194: 723-2580 | F194: CS | G194: 50 | H194: $303.00 | I194: 44% | J194: $169.33 | K194: Filters | L194: https://us.vwr.com/store/product?keyword=10218-474
A195: 166 | B195: EZ-PAK MEMBRANES HAWG 47Q6000 600/PK | D195: 13500-162 | E195: 10407332 | F195: PK | G195: 400 | H195: $663.30 | I195: 35% | J195: $433.62 | K195: Filters | L195: https://us.vwr.com/store/product?keyword=13500-162
A196: 167 | B196: 300ML GRADUATED FUNNEL 1CS | D196: 71001-594 | E196: 33971-300 | F196: CS | G196: 1 | H196: $149.44 | I196: 39% | J196: $91.73 | K196: Filters | L196: https://us.vwr.com/store/product?keyword=71001-594
A197: 168 | B197: FILTER PAPER 7CM 100/PK | C197: X | D197: 28450-070 | E197: 1001-070 | F197: PK | G197: 100 | H197: $18.28 | I197: 41% | J197: $10.76 | K197: Filters | L197: https://us.vwr.com/store/product?keyword=28450-070
A198: 169 | B198: SIEVE S STEEL 8IN 9MSH US NO10 | D198: 57334-552 | E198: 57334-552 | F198: EA | G198: 1 | H198: $263.91 | I198: 75% | J198: $64.87 | K198: Sieves | L198: https://us.vwr.com/store/product?keyword=57334-552
A199: 170 | B199: VACUUM PRESSURE AIR PUMP 115V | D199: 54908-037 | E199: DOA-P704-AA | F199: EA | G199: 1 | H199: $1,893.11 | I199: 64% | J199: $677.05 | K199: Pumps | L199: https://us.vwr.com/store/product?keyword=54908-037
A200: 171 | B200: VARIABLE FLOW PUMP 115V | D200: MFLX77240-20 | E200: MFLX77240-20 | F200: EA | G200: 1 | H200: $1,300.00 | I200: 33% | J200: $874.61 | K200: Pumps | L200: https://us.vwr.com/store/product?keyword=MFLX77240-20
A201: 172 | B201: SYRINGE PUMP 110V | C201: X | D201: 52459-000 | E201: 780100 | F201: EA | G201: 1 | H201: $2,319.79 | I201: 47% | J201: $1,232.10 | K201: Pumps | L201: https://us.vwr.com/store/product?keyword=52459-000
A202: 173 | B202: TUBING VINYL 1/4X1/16 50FT/PK | D202: MFLX06405-06 | E202: MFLX06405-06 | F202: EA | G202: 1 | H202: $41.20 | I202: 31% | J202: $28.33 | K202: Tubing | L202: https://us.vwr.com/store/product?keyword=MFLX06405-06
A203: 174 | B203: VACUUM PUMP 115VAC 60HZ | C203: X | D203: 54973-075 | E203: 1400B-01 | F203: EA | G203: 1 | H203: $3,946.37 | I203: 49% | J203: $2,009.29 | K203: Pumps | L203: https://us.vwr.com/store/product?keyword=54973-075
A204: 175 | B204: GEL SYSTEM MINI 7CMX8CM | C204: X | D204: 89032-288 | E204: 89032-288 | F204: EA | G204: 1 | H204: $1,201.00 | I204: 77% | J204: $270.93 | K204: Electrophoresis Systems | L204: https://us.vwr.com/store/product?keyword=89032-288
A205: 176 | B205: POWER SUPPLY 400MA 300V | C205: X | D205: 10001-844 | E205: BT402 | F205: EA | G205: 1 | H205: $960.66 | I205: 31% | J205: $661.71 | K205: Power Supplies | L205: https://us.vwr.com/store/product?keyword=10001-844
... 236 more rows

Sheet Band 1 Sheet 2
A1: 300 | B1: ISOPROPYL ALCOHOL, 70%, 1 L | D1: BDH1131-1LP | E1: BDH1131-1LP | F1: EA | G1: 1 | H1: $40.10 | I1: 82% | J1: =(H1)-(H1*I1) -> $7.40 | K1: 2-Propanol | L1: https://us.vwr.com/store/product?keyword=BDH1131-1LP
A2: 19 | B2: ACETONE CERTIFIED ACS 20L | D2: BDH1101-19L | E2: BDH1101-19L | F2: EA | G2: 1 | H2: $293.67 | I2: 75% | J2: $73.46 | K2: Acetone | L2: https://us.vwr.com/store/product?keyword=BDH1101-19L
A3: 293 | B3: ETHANOL, DENATURED, 70%, 4 L | D3: BDH1164-4LP | E3: BDH1164-4LP | F3: EA | G3: 1 | H3: $80.16 | I3: 61% | J3: $31.01 | K3: Alcohol | L3: https://us.vwr.com/store/product?keyword=BDH1164-4LP
A4: 206 | B4: ALUMINUM FOIL 12IN X 500FT | C4: X | D4: 100496-118 | E4: 60400 | F4: EA | G4: 1 | H4: $98.56 | I4: 43% | J4: $56.27 | K4: Aluminum Foil | L4: https://us.vwr.com/store/product?keyword=100496-118
A5: 356 | B5: ALUMINUM FOIL 18IN X 50FT | C5: X | D5: 89079-075 | E5: 61018-56 | F5: EA | G5: 1 | H5: $93.40 | I5: 86% | J5: $13.33 | K5: Aluminum Foil | L5: https://us.vwr.com/store/product?keyword=89079-075
A6: 30 | B6: AMMONIUM CHLORIDE ACS 500 G | C6: X | D6: EMAX1270-1 | E6: AX1270-1 | F6: EA | G6: 1 | H6: $106.44 | I6: 64% | J6: $38.09 | K6: Ammonium chloride | L6: https://us.vwr.com/store/product?keyword=EMAX1270-1
A7: 276 | B7: BD GASPAK EZ GAS CONTAINER SYSTEM SACHETS 20/PK | D7: 90003-642 | E7: 260678 | F7: PK | G7: 20 | H7: $184.77 | I7: 47% | J7: $97.34 | K7: Anaerobic Systems | L7: https://us.vwr.com/store/product?keyword=90003-642
A8: 222 | B8: OHAUS MB23 MOISTURE ANALYZER | D8: 97021-958 | E8: 83999801 | F8: EA | G8: 1 | H8: $3,836.22 | I8: 22% | J8: $2,995.02 | K8: Analyzers | L8: https://us.vwr.com/store/product?keyword=97021-958
A9: 205 | B9: HC103 HALOGEN MOISTURE BALANCE | D9: 10820-448 | E9: 30216103 | F9: EA | G9: 1 | H9: $6,695.00 | I9: 25% | J9: $4,994.32 | K9: Analyzers | L9: https://us.vwr.com/store/product?keyword=10820-448
A10: 228 | B10: CO2 OR O2 ANALYZER REFILL KITS 0-7.6% ANLYZR 3/PK | D10: 10655-115 | E10: H0010-5100 | F10: EA | G10: 3 | H10: $326.70 | I10: 70% | J10: $99.12 | K10: Analyzers | L10: https://us.vwr.com/store/product?keyword=10655-115
A11: 24 | B11: GOAT ANTI-RABBIT IGG H&L ANTIBODY (HRP) 2ML | C11: X | D11: 10167-134 | E11: GTX228416-01 | F11: EA | G11: 1 | H11: $231.64 | I11: 29% | J11: $163.54 | K11: Antibodies | L11: https://us.vwr.com/store/product?keyword=10167-134
A12: 394 | B12: BUBBLE POUCH 6C COMPARTMENT 25/CS | D12: 11217-558 | E12: BLP1000 | F12: CS | G12: 25 | H12: $57.08 | I12: 55% | J12: $25.59 | K12: Bags | L12: https://us.vwr.com/store/product?keyword=11217-558
A13: 133 | B13: NASCO WHIRL-PAK PE BAGS FOR CHLORINATED WATER 100/PK | C13: X | D13: 11216-780 | E13: B01254WA | F13: PK | G13: 100 | H13: $219.78 | I13: 71% | J13: $64.09 | K13: Bags | L13: https://us.vwr.com/store/product?keyword=11216-780
A14: 395 | B14: RD PLASTICS THREE-WALL 6X9 INCH RECLOSABLE BIOHAZARD SPECIMEN BAGS 1000/CS | D14: 11215-684 | E14: 11215-684 | F14: CS | G14: 500 | H14: $299.98 | I14: 82% | J14: $53.26 | K14: Bags | L14: https://us.vwr.com/store/product?keyword=11215-684
A15: 131 | B15: BAG SPECIMENBIOHAZARD 6X9INCH 500CS | C15: X | D15: 10497-176 | E15: 10497-176 | F15: CS | G15: 1000 | H15: $225.96 | I15: 60% | J15: $90.46 | K15: Bags | L15: https://us.vwr.com/store/product?keyword=10497-176
A16: 210 | B16: METTLER TOLEDO XSR204 ANALYTICAL BALANCE | D16: 76292-098 | E16: 30355500 | F16: EA | G16: 1 | H16: $9,445.00 | I16: 23% | J16: $7,298.41 | K16: Balances and Scales | L16: https://us.vwr.com/store/product?keyword=76292-098
A17: 202 | B17: METTLER TOLEDO ME103TE PRECISION BALANCE | D17: 10821-510 | E17: 30216546 | F17: EA | G17: 1 | H17: $2,280.00 | I17: 32% | J17: $1,555.76 | K17: Balances and Scales | L17: https://us.vwr.com/store/product?keyword=10821-510
A18: 201 | B18: OHAUS PORTABLE BALANCE WITH TOUCH SCREEN | D18: 10805-288 | E18: 30253012 | F18: EA | G18: 1 | H18: $424.61 | I18: 35% | J18: $276.44 | K18: Balances and Scales | L18: https://us.vwr.com/store/product?keyword=10805-288
A19: 204 | B19: RANGER 3000 BENCH SCALE | D19: 89497-014 | E19: 30031707 | F19: EA | G19: 1 | H19: $869.50 | I19: 35% | J19: $565.68 | K19: Balances and Scales | L19: https://us.vwr.com/store/product?keyword=89497-014
A20: 220 | B20: TEST TUBE TRAY 13-25MM | D20: 13306-364 | E20: 3161597 | F20: EA | G20: 1 | H20: $1,529.55 | I20: 48% | J20: $794.61 | K20: Baths | L20: https://us.vwr.com/store/product?keyword=13306-364
A21: 109 | B21: PRECISION 15L SHAKING BATH | C21: X | D21: 10805-308 | E21: TSSWB15 | F21: EA | G21: 1 | H21: $3,621.94 | I21: 27% | J21: $2,647.30 | K21: Baths | L21: https://us.vwr.com/store/product?keyword=10805-308
A22: 108 | B22: ISOTEMP 5L GENERAL PURPOSE BATH | D22: 76308-834 | E22: 76308-834 | F22: EA | G22: 1 | H22: $1,002.45 | I22: 32% | J22: $683.98 | K22: Baths | L22: https://us.vwr.com/store/product?keyword=76308-834
A23: 258 | B23: GLASS BEADS SOLID 5MM 1LB/PK | C23: X | D23: 48300-448 | E23: 3000900 | F23: PK | G23: 1 | H23: $47.83 | I23: 41% | J23: $28.07 | K23: Beads | L23: https://us.vwr.com/store/product?keyword=48300-448
A24: 230 | B24: CARBOXYL MAGNETIC BEADS, HYDROPHOBIC 15 ML | D24: 10204-670 | E24: 65152105050250 | F24: EA | G24: 1 | H24: $930.90 | I24: 43% | J24: $530.47 | K24: Beads | L24: https://us.vwr.com/store/product?keyword=10204-670
A25: 57 | B25: GLASS BEADS SOLID 3MM 1LB/PK | D25: 26396-508 | E25: 100C | F25: PK | G25: 1 | H25: $46.23 | I25: 82% | J25: $8.28 | K25: Beads | L25: https://us.vwr.com/store/product?keyword=26396-508
A26: 70 | B26: DIGITAL DRY BATHS/BLOCK HEATER 2BLOCK 120V | C26: X | D26: 75990-504 | E26: 6885-DB | F26: CS | G26: 1 | H26: $735.68 | I26: 32% | J26: $502.05 | K26: Block Heaters | L26: https://us.vwr.com/store/product?keyword=75990-504
A27: 49 | B27: MINI DRY BATH HEAT 15X1.5ML | D27: 76549-942 | E27: 76549-942 | F27: EA | G27: 1 | H27: $399.77 | I27: 47% | J27: $212.12 | K27: Block Heaters | L27: https://us.vwr.com/store/product?keyword=76549-942
A28: 69 | B28: DRY BATH BLOCK, 28 X 1.5 ML | C28: X | D28: 10753-862 | E28: 88870103 | F28: EA | G28: 1 | H28: $173.17 | I28: 49% | J28: $88.38 | K28: Block Heaters | L28: https://us.vwr.com/store/product?keyword=10753-862
A29: 132 | B29: LANCET PURP 30GAUGE X1.5MM 200PK RX | C29: X | D29: 10804-085 | E29: AT1022 | F29: BX | G29: 100 | H29: $29.65 | I29: 38% | J29: $18.24 | K29: Blood Lancets | L29: https://us.vwr.com/store/product?keyword=10804-085
A30: 208 | B30: ALUM DISH FLUTED 42ML 144/PK | C30: X | D30: 10806-406 | E30: 10806-406 | F30: PK | G30: 12 | H30: $2,603.86 | I30: 51% | J30: $1,265.11 | K30: Boats | L30: https://us.vwr.com/store/product?keyword=10806-406
A31: 209 | B31: WEIGH DISH POLYSTYRENE LARGE 500/CS | D31: 10770-450 | E31: 10770-450 | F31: PK | G31: 500 | H31: $394.10 | I31: 90% | J31: $37.65 | K31: Boats | L31: https://us.vwr.com/store/product?keyword=10770-450
A32: 207 | B32: WEIGH BOATS MEDIUM 500/PK | C32: X | D32: 10770-406 | E32: 10770-406 | F32: PK | G32: 500 | H32: $277.12 | I32: 94% | J32: $16.60 | K32: Boats | L32: https://us.vwr.com/store/product?keyword=10770-406
A33: 373 | B33: BOILING STONES TFE 450GM BTL | D33: 26397-103 | E33: D1069103 | F33: EA | G33: 1 | H33: $274.71 | I33: 68% | J33: $88.11 | K33: Boiling Stones | L33: https://us.vwr.com/store/product?keyword=26397-103
A34: 285 | B34: BORIC ACID, 4% INDICATING, 20L | C34: X | D34: 101204-176 | E34: 1267-20L | F34: EA | G34: 1 | H34: $152.46 | I34: 47% | J34: $80.72 | K34: BORIC ACID 4% INDICATING 20L (no category) | L34: https://us.vwr.com/store/product?keyword=101204-176
A35: 155 | B35: KJEL-SORB TM SOL 4LITER | C35: X | D35: 101203-002 | E35: 1267-4L | F35: EA | G35: 1 | H35: $77.60 | I35: 63% | J35: $28.39 | K35: BORIC ACID 4% INDICATING 4L | L35: https://us.vwr.com/store/product?keyword=101203-002
A36: 257 | B36: DROPPER GLASS W/RUBBER NIPL 30ML 6/CS | D36: 16429-012 | E36: 15040D-3001 | F36: CS | G36: 6 | H36: $35.16 | I36: 53% | J36: $16.59 | K36: Bottles | L36: https://us.vwr.com/store/product?keyword=16429-012
A37: 40 | B37: MIST SPRAY BOTTLE PUMP 8 OZ | D37: 23609-182 | E37: 23609-182 | F37: PK | G37: 3 | H37: $53.70 | I37: 67% | J37: $17.65 | K37: Bottles | L37: https://us.vwr.com/store/product?keyword=23609-182
A38: 97 | B38: BTL DROP-DISP LDPE 30ML 12/PK | C38: X | D38: 13197-102 | E38: F11637-0001 | F38: PK | G38: 12 | H38: $49.35 | I38: 75% | J38: $12.40 | K38: Bottles | L38: https://us.vwr.com/store/product?keyword=13197-102
A39: 38 | B39: CARBOY PP W / HANDLES AUTOCLAVABLE 10L | D39: 10755-102 | E39: 10755-102 | F39: EA | G39: 1 | H39: $283.30 | I39: 84% | J39: $44.68 | K39: Bottles | L39: https://us.vwr.com/store/product?keyword=10755-102
A40: 41 | B40: WIDE-MOUTH PLASTIC BOTTLE, HDPE, 500ML (16OZ); 12/PK | D40: 414004-114 | E40: 414004-114 | F40: PK | G40: 12 | H40: $203.80 | I40: 92% | J40: $15.59 | K40: Bottles | L40: https://us.vwr.com/store/product?keyword=414004-114
A41: 127 | B41: CENTRIFUGE TUBE 500ML 6/PK | D41: 47735-696 | E41: 47735-696 | F41: CS | G41: 24 | H41: $399.37 | I41: 61% | J41: $155.21 | K41: Bottles | L41: https://us.vwr.com/store/product?keyword=47735-696
A42: 112 | B42: JAR WIDEMOUTH PP 16OZ/500ML 6/PK | D42: 89094-108 | E42: 89094-108 | F42: CS | G42: 24 | H42: $345.76 | I42: 73% | J42: $92.05 | K42: Bottles | L42: https://us.vwr.com/store/product?keyword=89094-108
A43: 42 | B43: ROUND NARROW-MOUTH AMBER GLASS 1L BOTTLE WITH CLOSURE 12/CS | D43: 10861-816 | E43: 10861-816 | F43: CS | G43: 12 | H43: $323.65 | I43: 94% | J43: $20.23 | K43: Bottles | L43: https://us.vwr.com/store/product?keyword=10861-816
A44: 86 | B44: FIBERBOARD STORAGE BOXES 12 PACK | C44: X | D44: 89214-750 | E44: 89214-750 | F44: EA | G44: 1 | H44: $2.78 | I44: 62% | J44: $1.06 | K44: Boxes | L44: https://us.vwr.com/store/product?keyword=89214-750
A45: 68 | B45: DIVIDER GRID 1/2IN 81CELL 12PK | D45: 82007-154 | E45: 82007-154 | F45: EA | G45: 1 | H45: $4.24 | I45: 78% | J45: $0.92 | K45: Boxes | L45: https://us.vwr.com/store/product?keyword=82007-154
A46: 13 | B46: BROMOBENZENE, 99% 250ML | D46: TS10668-2500 | E46: 10668-2500 | F46: EA | G46: 1 | H46: $49.76 | I46: 31% | J46: $34.29 | K46: Bromobenzene | L46: https://us.vwr.com/store/product?keyword=TS10668-2500
A47: 286 | B47: BROMOTHYMOL BLUE, 0.04%, 500ML | D47: BDH7393-2 | E47: BDH7393-2 | F47: EA | G47: 1 | H47: $58.68 | I47: 60% | J47: $23.65 | K47: Bromothymol blue sodium salt | L47: https://us.vwr.com/store/product?keyword=BDH7393-2
A48: 183 | B48: 50X TAE BUFFER 1L | D48: 97063-692 | E48: 97063-692 | F48: EA | G48: 1 | H48: $220.98 | I48: 29% | J48: $157.71 | K48: Buffers | L48: https://us.vwr.com/store/product?keyword=97063-692
A49: 242 | B49: BUFFER CAPSULES PH 4 5VL/PK | C49: X | D49: 34175-129 | E49: 270-4.00 | F49: CS | G49: 5 | H49: $66.18 | I49: 47% | J49: $35.24 | K49: Buffers | L49: https://us.vwr.com/store/product?keyword=34175-129
A50: 281 | B50: BLD BK SALINE BUF .85% 10 L | D50: 89370-100 | E50: 89370-100 | F50: EA | G50: 1 | H50: $53.12 | I50: 64% | J50: $19.17 | K50: Buffers | L50: https://us.vwr.com/store/product?keyword=89370-100
A51: 6 | B51: BUFFER CLRD YEL PH 7.00 500ML | D51: BDH5046-500ML | E51: BDH5046-500ML | F51: EA | G51: 1 | H51: $69.03 | I51: 93% | J51: $4.85 | K51: Buffers | L51: https://us.vwr.com/store/product?keyword=BDH5046-500ML
A52: 4 | B52: BUFFER COLOR RED PH 4.00 500ML | D52: BDH5018-500ML | E52: BDH5018-500ML | F52: EA | G52: 1 | H52: $86.10 | I52: 94% | J52: $4.94 | K52: Buffers | L52: https://us.vwr.com/store/product?keyword=BDH5018-500ML
A53: 184 | B53: BUFFER PH 10.01 475 ML BTL | D53: BDH5078-500ML | E53: BDH5078-500ML | F53: EA | G53: 1 | H53: $98.27 | I53: 94% | J53: $5.44 | K53: Buffers | L53: https://us.vwr.com/store/product?keyword=BDH5078-500ML
A54: 3 | B54: BUFFER PH 7.00 475 ML | D54: BDH5052-500ML | E54: BDH5052-500ML | F54: EA | G54: 1 | H54: $88.31 | I54: 94% | J54: $4.87 | K54: Buffers | L54: https://us.vwr.com/store/product?keyword=BDH5052-500ML
A55: 5 | B55: BUFFER COLRD BLUE PH 10 500ML | D55: BDH5072-500ML | E55: BDH5072-500ML | F55: EA | G55: 1 | H55: $130.64 | I55: 96% | J55: $5.27 | K55: Buffers | L55: https://us.vwr.com/store/product?keyword=BDH5072-500ML
A56: 216 | B56: CALORIMETER 115VAC 50/60 HZ | C56: X | D56: 19420-034 | E56: 1341EB | F56: EA | G56: 1 | H56: $14,518.60 | I56: 42% | J56: $8,448.31 | K56: Calorimeters | L56: https://us.vwr.com/store/product?keyword=19420-034
A57: 36 | B57: STAINLESS STEEL UTILITY CART | D57: 97005-266 | E57: 97005-266 | F57: EA | G57: 1 | H57: $706.42 | I57: 66% | J57: $237.87 | K57: Carts | L57: https://us.vwr.com/store/product?keyword=97005-266
A58: 214 | B58: ALL-METAL HAND TALLY COUNTER | D58: 23609-102 | E58: 23609-102 | F58: EA | G58: 1 | H58: $76.10 | I58: 79% | J58: $16.33 | K58: Cash and Check Handling Supplies | L58: https://us.vwr.com/store/product?keyword=23609-102
A59: 269 | B59: MODULUS DATA SYSTEMS DIFFCOUNT III ELECTRONIC DIFFERENTIAL TALLY COUNTER | C59: X | D59: 470309-548 | E59: CTL-DIFD-08KP | F59: EA | G59: 1 | H59: $284.60 | I59: 26% | J59: $211.29 | K59: Cell Counters and Flow Cytometers | L59: https://us.vwr.com/store/product?keyword=470309-548
A60: 27 | B60: RPMI-1640 LIQUID MEDIA 500ML | C60: X | D60: 16777-145 | E60: SH30027.01 | F60: EA | G60: 1 | H60: $30.61 | I60: 84% | J60: $5.05 | K60: Cell Culture Media | L60: https://us.vwr.com/store/product?keyword=16777-145
A61: 278 | B61: HALT PHOSPHATASE INHIBITOR SINGLE-USE COCKTAIL | C61: X | D61: PI78440 | E61: 78440 | F61: EA | G61: 1 | H61: $298.00 | I61: 4% | J61: $285.43 | K61: Cell Culture Supplements and Additives | L61: https://us.vwr.com/store/product?keyword=PI78440
A62: 75 | B62: CELL LIFTER 100/CS | D62: 76036-004 | E62: 76036-004 | F62: CS | G62: 100 | H62: $140.86 | I62: 74% | J62: $36.40 | K62: Cell Scrapers | L62: https://us.vwr.com/store/product?keyword=76036-004
A63: 76 | B63: CELL SCRAPER INDIV WRAP 100/CS | D63: 10062-906 | E63: 10062-906 | F63: CS | G63: 100 | H63: $282.92 | I63: 84% | J63: $46.18 | K63: Cell Scrapers | L63: https://us.vwr.com/store/product?keyword=10062-906
A64: 340 | B64: CELL SCRAPERS 10 INCH HANDLE 100/CS | D64: 10062-904 | E64: 10062-904 | F64: CS | G64: 100 | H64: $284.26 | I64: 84% | J64: $46.18 | K64: Cell Scrapers | L64: https://us.vwr.com/store/product?keyword=10062-904
A65: 341 | B65: CELL STRAINER STRL 100UM 50/CS | D65: 76327-102 | E65: 76327-102 | F65: PK | G65: 50 | H65: $167.27 | I65: 76% | J65: =(H65)-(H65*I65) -> $40.80 | K65: Cell Strainers | L65: https://us.vwr.com/store/product?keyword=76327-102
A66: 77 | B66: CELL STRAINER STRL 40UM 50/CS | D66: 76327-098 | E66: 76327-098 | F66: PK | G66: 50 | H66: $196.05 | I66: 79% | J66: $41.57 | K66: Cell Strainers | L66: https://us.vwr.com/store/product?keyword=76327-098
A67: 125 | B67: ROTOR LYNX F14-6X250Y EA | C67: X | D67: BK363934 | E67: 363934 | F67: EA | G67: 1 | H67: $12,007.52 | I67: 24% | J67: $9,106.96 | K67: Centrifuges | L67: https://us.vwr.com/store/product?keyword=BK363934
A68: 121 | B68: EPPENDORF 5430 CENTRIFUGE 120V | C68: X | D68: 75875-084 | E68: 22620576 | F68: EA | G68: 1 | H68: $8,975.03 | I68: 37% | J68: $5,679.28 | K68: Centrifuges | L68: https://us.vwr.com/store/product?keyword=75875-084
A69: 126 | B69: F15-8X50C FIBERLITE ROTOR | D69: 97040-276 | E69: 75003663 | F69: EA | G69: 1 | H69: $5,827.79 | I69: 43% | J69: $3,343.84 | K69: Centrifuges | L69: https://us.vwr.com/store/product?keyword=97040-276
A70: 124 | B70: LYNX 4000 200-240V 50/60 HZ EA | C70: X | D70: BKB14535 | E70: B14535 | F70: EA | G70: 1 | H70: $45,911.97 | I70: 25% | J70: $34,411.76 | K70: Centrifuges | L70: https://us.vwr.com/store/product?keyword=BKB14535
A71: 122 | B71: CORNING MINI CENTRIFUGE | C71: X | D71: 76163-552 | E71: 6770 | F71: CS | G71: 1 | H71: $390.89 | I71: 29% | J71: $278.05 | K71: Centrifuges | L71: https://us.vwr.com/store/product?keyword=76163-552
A72: 123 | B72: SORVALL ST8, 120V | D72: 76533-880 | E72: 76533-880 | F72: EA | G72: 1 | H72: $2,760.15 | I72: 30% | J72: $1,943.54 | K72: Centrifuges | L72: https://us.vwr.com/store/product?keyword=76533-880
A73: 272 | B73: VIRCHOW SKULL BREAKER, EDGE: 0.625 IN. (1.5CM) | C73: X | D73: 100190-210 | E73: RS-9782 | F73: EA | G73: 1 | H73: $180.83 | I73: 1% | J73: $179.09 | K73: Chisels | L73: https://us.vwr.com/store/product?keyword=100190-210
A74: 271 | B74: BONE CHISEL 0.5″ BEVELED EDGE | D74: 76549-260 | E74: AG105 | F74: EA | G74: 1 | H74: $181.40 | I74: 15% | J74: $153.33 | K74: Chisels | L74: https://us.vwr.com/store/product?keyword=76549-260
A75: 1 | B75: CHLOROFORM-D, 99.8 ATOM 100 ML | C75: X | D75: TCC0583-100G | E75: C0583-100G | F75: EA | G75: 1 | H75: $75.64 | I75: 28% | J75: $54.66 | K75: Chloroform-[D1] | L75: https://us.vwr.com/store/product?keyword=TCC0583-100G
A76: 263 | B76: RESTEK RTX-CLPESTICIDES2 CAPILLARY COLUMNS | C76: X | D76: 10849-894 | E76: 42301 | F76: EA | G76: 1 | H76: $444.96 | I76: 23% | J76: $344.43 | K76: Chromatography Columns | L76: https://us.vwr.com/store/product?keyword=10849-894
A77: 264 | B77: BUCHI FLASHPURE ID SILICA FLASH CHROMATOGRAPHY CARTRIDGES | C77: X | D77: 75794-688 | E77: 145146130 | F77: EA | G77: 20 | H77: $220.95 | I77: 47% | J77: $116.66 | K77: Chromatography Columns | L77: https://us.vwr.com/store/product?keyword=75794-688
A78: 107 | B78: ISOTEMP 4100R20 REF BATH-115V | D78: 89202-910 | E78: 89202-910 | F78: EA | G78: 1 | H78: $2,050.73 | I78: 32% | J78: $1,392.90 | K78: Circulating Thermostats | L78: https://us.vwr.com/store/product?keyword=89202-910
A79: 110 | B79: ARCTIC A10 REFRIGERATED CIRCULATORS | D79: 89202-966 | E79: 89202-966 | F79: EA | G79: 1 | H79: $4,326.64 | I79: 34% | J79: $2,867.06 | K79: Circulating Thermostats | L79: https://us.vwr.com/store/product?keyword=89202-966
A80: 359 | B80: CASTALOY CLAMP REGULAR HOLDER | C80: X | D80: 80063-652 | E80: CG-9250-01 | F80: EA | G80: 1 | H80: $35.90 | I80: 37% | J80: $22.73 | K80: Clamps | L80: https://us.vwr.com/store/product?keyword=80063-652
A81: 357 | B81: THERMOMETER SWIVEL CLAMP | D81: 21573-060 | E81: 21573-060 | F81: EA | G81: 1 | H81: $76.51 | I81: 71% | J81: $21.87 | K81: Clamps | L81: https://us.vwr.com/store/product?keyword=21573-060
A82: 358 | B82: HEAVY-DUTY PINCHCOCK | D82: 470019-490 | E82: CLMP01 | F82: EA | G82: 1 | H82: $5.95 | I82: 83% | J82: $1.02 | K82: Clamps | L82: https://us.vwr.com/store/product?keyword=470019-490
A83: 397 | B83: SUPERTEK SCIENTIFIC TEST TUBE HOLDERS | C83: X | D83: 470121-808 | E83: TTCL03 | F83: EA | G83: 1 | H83: $6.35 | I83: 87% | J83: $0.80 | K83: Clamps | L83: https://us.vwr.com/store/product?keyword=470121-808
A84: 267 | B84: ABBOTT LABORATORIES CC ALKALINE WASH 2X500ML/EA | C84: X | D84: 60787-682 | E84: 4522200 | F84: EA | G84: 1 | H84: $39.00 | I84: 23% | J84: $29.88 | K84: Cleaning Agents | L84: https://us.vwr.com/store/product?keyword=60787-682
A85: 94 | B85: LABSOLUTION DETERGENT 10 LBS | D85: 21851-130 | E85: 4422000 | F85: EA | G85: 1 | H85: $219.00 | I85: 31% | J85: $151.95 | K85: Cleaning Agents | L85: https://us.vwr.com/store/product?keyword=21851-130
A86: 95 | B86: SPARKLEEN I MANUAL WASH 3.25LB BOX | D86: EM-EX0995-1 | E86: EX0995-1 | F86: EA | G86: 1 | H86: $108.96 | I86: 36% | J86: $69.22 | K86: Cleaning Agents | L86: https://us.vwr.com/store/product?keyword=EM-EX0995-1
A87: 140 | B87: STERILE 2-PLY ALCOHOL PREP PAD 200/PK | D87: 100489-216 | E87: 71005-20 | F87: PK | G87: 200 | H87: $9.87 | I87: 47% | J87: $5.27 | K87: Cleaning Agents | L87: https://us.vwr.com/store/product?keyword=100489-216
A88: 99 | B88: CIDEHOL 70 ISOPROPYL ALCOHOL SOLUTION 1 GAL | C88: X | D88: 89108-162 | E88: 89108-162 | F88: CS | G88: 4 | H88: $294.35 | I88: 51% | J88: $145.35 | K88: Cleaning Agents | L88: https://us.vwr.com/store/product?keyword=89108-162
A89: 134 | B89: BD VACUTAINER PLASTIC BLOOD COLLECTION TUBE 10ML 100/PK | D89: BD367874 | E89: 367874 | F89: PK | G89: 100 | H89: $108.20 | I89: 46% | J89: $58.76 | K89: Clinical Diagnostic Systems | L89: https://us.vwr.com/store/product?keyword=BD367874
A90: 266 | B90: ROCHE DIAGNOSTICS AVL 9180 SERIES ELECTROLYTE ANALYZERS | D90: 103881-354 | E90: 0-DD-SMARTLYTEPLUS | F90: EA | G90: 1 | H90: $5,175.00 | I90: 46% | J90: $2,804.88 | K90: Clinical Diagnostic Systems | L90: https://us.vwr.com/store/product?keyword=103881-354
A91: 265 | B91: ROCHE DIAGNOSTICS ACC-CHEKPERFRMA TST STRP 50/PK | C91: X | D91: 75840-798 | E91: CD-BG5 | F91: BX | G91: 50 | H91: $24.90 | I91: 51% | J91: $12.29 | K91: Clinical Diagnostic Systems | L91: https://us.vwr.com/store/product?keyword=75840-798
A92: 135 | B92: BD VACUTAINER BLOOD COLLECTION SERUM SEPARATION TUBE 5ML 100/PK | D92: BD367986 | E92: 367986 | F92: PK | G92: 100 | H92: $208.10 | I92: 75% | J92: $52.89 | K92: Clinical Diagnostic Systems | L92: https://us.vwr.com/store/product?keyword=BD367986
A93: 156 | B93: VAC CONC W/PUMP MDL 5301 115V | D93: 53512-624 | E93: 22820109 | F93: EA | G93: 1 | H93: $17,845.10 | I93: 43% | J93: $10,213.52 | K93: Concentrators | L93: https://us.vwr.com/store/product?keyword=53512-624
A94: 154 | B94: AIR REFLUX COLUMN, 14/20 JOINTS, MICROSCALE | D94: 60004-122 | E94: C221420 | F94: EA | G94: 1 | H94: $44.03 | I94: 62% | J94: $16.61 | K94: Condensers | L94: https://us.vwr.com/store/product?keyword=60004-122
A95: 90 | B95: FREEZING CONTAINER HOLDS 18 TUBES | D95: 414004-284 | E95: 414004-284 | F95: EA | G95: 1 | H95: $122.20 | I95: 66% | J95: $41.10 | K95: Coolers | L95: https://us.vwr.com/store/product?keyword=414004-284
A96: 364 | B96: COVER GLASS 20MMX26MMX.5MM EA | D96: 16007-000 | E96: 16007-000 | F96: PK | G96: 10 | H96: $171.61 | I96: 90% | J96: $16.95 | K96: Cover Glasses | L96: https://us.vwr.com/store/product?keyword=16007-000
A97: 346 | B97: SYNTHWARE LOW FORM 30 ML GOOCH CRUCIBLES | C97: X | D97: 60003-352 | E97: F773030M | F97: EA | G97: 1 | H97: $37.45 | I97: 62% | J97: $14.30 | K97: Crucibles | L97: https://us.vwr.com/store/product?keyword=60003-352
A98: 347 | B98: CRUCIBLE HIGH FORM 15 ML 6/PK | D98: 89037-992 | E98: 89037-992 | F98: PK | G98: 6 | H98: $63.81 | I98: 77% | J98: $14.46 | K98: Crucibles | L98: https://us.vwr.com/store/product?keyword=89037-992
A99: 400 | B99: PLASTIC PETRISLIDES 100/PK | D99: 28145-473 | E99: 7231 | F99: PK | G99: 100 | H99: $133.16 | I99: 39% | J99: $81.74 | K99: Culture Dishes | L99: https://us.vwr.com/store/product?keyword=28145-473
A100: 339 | B100: CORNING TC-TREATED CULTURE DISHES 100X20MM 500/CS | C100: X | D100: 25382-428 | E100: 430167 | F100: CS | G100: 500 | H100: $1,344.10 | I100: 49% | J100: $690.41 | K100: Culture Dishes | L100: https://us.vwr.com/store/product?keyword=25382-428
A101: 342 | B101: BIOLITE CELL CULTURE TREATED DISHES 150X20MM 120/CS | D101: 10062-882 | E101: 10062-882 | F101: CS | G101: 120 | H101: $538.12 | I101: 83% | J101: $90.87 | K101: Culture Dishes | L101: https://us.vwr.com/store/product?keyword=10062-882
A102: 78 | B102: BIOLITE 100MM TC DISH 200/CS | D102: 10861-680 | E102: 10861-680 | F102: CS | G102: 240 | H102: $572.64 | I102: 83% | J102: $94.55 | K102: Culture Dishes | L102: https://us.vwr.com/store/product?keyword=10861-680
A103: 334 | B103: PYREX VISTA CYLINDER 100ML 12/CS | C103: X | D103: 89090-114 | E103: 70075-100 | F103: CS | G103: 12 | H103: $187.40 | I103: 40% | J103: $112.19 | K103: Cylinders | L103: https://us.vwr.com/store/product?keyword=89090-114
A104: 335 | B104: KIMAX CLASS A GRADUATED CYLINDER 6/CS | C104: X | D104: 89217-666 | E104: 20027-25 | F104: CS | G104: 6 | H104: $383.75 | I104: 51% | J104: $188.93 | K104: Cylinders | L104: https://us.vwr.com/store/product?keyword=89217-666
A105: 22 | B105: D-GLUCOSE, ANHYDROUS, RE 500GR | D105: BDH9230-500G | E105: BDH9230-500G | F105: EA | G105: 1 | H105: $77.72 | I105: 61% | J105: $29.95 | K105: D(+)-Glucose | L105: https://us.vwr.com/store/product?keyword=BDH9230-500G
A106: 376 | B106: ACRYLIC DESICCATOR CABINETS 12X12X12IN | D106: 32800-012 | E106: 32800-012 | F106: EA | G106: 1 | H106: $1,155.42 | I106: 60% | J106: $466.62 | K106: Desiccators | L106: https://us.vwr.com/store/product?keyword=32800-012
A107: 375 | B107: DESICCATOR WITH PLATE 250MM | D107: 75871-666 | E107: 75871-666 | F107: CS | G107: 1 | H107: $489.20 | I107: 68% | J107: $156.66 | K107: Desiccators | L107: https://us.vwr.com/store/product?keyword=75871-666
A108: 43 | B108: BENCHTOP LIQUID NITROGEN CONTAINER 1L | D108: 89057-548 | E108: 7075-15 | F108: EA | G108: 1 | H108: $303.67 | I108: 26% | J108: $224.16 | K108: Dewars and Cryogenic Vessels | L108: https://us.vwr.com/store/product?keyword=89057-548
A109: 87 | B109: DEWAR FLSK STNDRD BASE 1000ML | C109: X | D109: 89057-570 | E109: 7078-10 | F109: EA | G109: 1 | H109: $761.90 | I109: 33% | J109: $513.55 | K109: Dewars and Cryogenic Vessels | L109: https://us.vwr.com/store/product?keyword=89057-570
A110: 18 | B110: ETHYL ETHER ANHYDROUS R ACS 4L | D110: BDH1121-4LPC | E110: BDH1121-4LPC | F110: EA | G110: 1 | H110: $474.42 | I110: 82% | J110: $84.13 | K110: Diethyl ether | L110: https://us.vwr.com/store/product?keyword=BDH1121-4LPC
A111: 217 | B111: ACID DIGESTION BOMB 23ML | D111: 25227-094 | E111: 4749 | F111: EA | G111: 1 | H111: $1,421.22 | I111: 44% | J111: $797.60 | K111: Digestion Systems | L111: https://us.vwr.com/store/product?keyword=25227-094
A112: 378 | B112: KIMBERLY-CLARK PROFESSIONAL UNIVERSAL PRECAUTIONS LAB COATS WOMEN MEDIUM 10/PK | C112: X | D112: 10815-740 | E112: 10046 | F112: CS | G112: 25 | H112: $396.94 | I112: 40% | J112: $237.62 | K112: Disposable Garments | L112: https://us.vwr.com/store/product?keyword=10815-740
A113: 98 | B113: POLYWEAR SMOOTH GOWNS: BULK/INDIVIDUALLY BAGGED BLUE LARGE 100/CS | C113: X | D113: 76462-942 | E113: 6033C35 | F113: CS | G113: 75 | H113: $71.58 | I113: 49% | J113: $36.40 | K113: Disposable Garments | L113: https://us.vwr.com/store/product?keyword=76462-942
A114: 377 | B114: TYVEK 121S SERIES COVERALLS XL 25/CS | D114: 89207-872 | E114: TY121SWHXL0025NS | F114: CS | G114: 25 | H114: $447.51 | I114: 60% | J114: $180.67 | K114: Disposable Garments | L114: https://us.vwr.com/store/product?keyword=89207-872
A115: 388 | B115: DUPONT PROSHIELD 30 SHOE COVERS SIZE LARGE 200/CS | C115: X | D115: 80076-700 | E115: PE440SWHLG020000 | F115: CS | G115: 200 | H115: $165.52 | I115: 65% | J115: $58.59 | K115: Disposable Garments | L115: https://us.vwr.com/store/product?keyword=80076-700
A116: 379 | B116: TYVEK SLEEVES WH 100PR/CS | C116: X | D116: 89125-646 | E116: IC501BWH0001000S | F116: CS | G116: 100 | H116: $619.47 | I116: 66% | J116: $207.55 | K116: Disposable Garments | L116: https://us.vwr.com/store/product?keyword=89125-646
A117: 100 | B117: AQUATRAK SHOE COVERS 150/CS | D117: 414004-646 | E117: 414004-646 | F117: CS | G117: 150 | H117: $135.12 | I117: 86% | J117: $18.45 | K117: Disposable Garments | L117: https://us.vwr.com/store/product?keyword=414004-646
A118: 386 | B118: POLY DISP APRONS SIZE S 50/PK | D118: 10826-007 | E118: 10826-007 | F118: PK | G118: 100 | H118: $408.62 | I118: 88% | J118: $48.16 | K118: Disposable Garments | L118: https://us.vwr.com/store/product?keyword=10826-007
A119: 294 | B119: EDTA, 0.0100 MOLAR,500ML | D119: RC2700-16 | E119: R2700000-500A | F119: EA | G119: 1 | H119: $36.42 | I119: 56% | J119: $15.91 | K119: EDTA disodium salt | L119: https://us.vwr.com/store/product?keyword=RC2700-16
A120: 240 | B120: METTLER TOLEDO FIVEEASY F20 PH/MV METERS | C120: X | D120: 10821-410 | E120: 30266627 | F120: EA | G120: 1 | H120: $900.00 | I120: 22% | J120: $698.82 | K120: Electrochemical Meters | L120: https://us.vwr.com/store/product?keyword=10821-410
A121: 251 | B121: PHTESTR 30 OAKTON | D121: 101076-408 | E121: WD-35634-30 | F121: EA | G121: 1 | H121: $132.25 | I121: 27% | J121: $96.77 | K121: Electrochemical Meters | L121: https://us.vwr.com/store/product?keyword=101076-408
A122: 247 | B122: INLAB ROUTINE PH ELECTRODES | C122: X | D122: 97001-588 | E122: 51343050 | F122: EA | G122: 1 | H122: $292.00 | I122: 17% | J122: $242.73 | K122: Electrodes | L122: https://us.vwr.com/store/product?keyword=97001-588
A123: 248 | B123: INLAB EXPERT PH ELECTRODES | C123: X | D123: 97001-608 | E123: 51343100 | F123: EA | G123: 1 | H123: $306.00 | I123: 17% | J123: $254.36 | K123: Electrodes | L123: https://us.vwr.com/store/product?keyword=97001-608
A124: 253 | B124: ORION FLUORIDE ELECTRODES | C124: X | D124: 34117-932 | E124: 9409SC | F124: EA | G124: 1 | H124: $976.84 | I124: 31% | J124: $677.53 | K124: Electrodes | L124: https://us.vwr.com/store/product?keyword=34117-932
A125: 52 | B125: SINGLE JUNCTION GEL PH/ATC ELECTRODE | C125: X | D125: 76221-302 | E125: 35801-71 | F125: EA | G125: 1 | H125: $140.27 | I125: 38% | J125: $87.07 | K125: Electrodes | L125: https://us.vwr.com/store/product?keyword=76221-302
A126: 245 | B126: PH/ATC TRIODE COMBINATION ELECTRODE | C126: X | D126: 97015-738 | E126: 8107BNUMD | F126: EA | G126: 1 | H126: $1,030.70 | I126: 43% | J126: $583.13 | K126: Electrodes | L126: https://us.vwr.com/store/product?keyword=97015-738
A127: 250 | B127: ORION LOW MAINT TRIODE PH/ATC | D127: 97015-738 | E127: 8107BNUMD | F127: EA | G127: 1 | H127: $1,030.70 | I127: 43% | J127: $583.13 | K127: Electrodes | L127: https://us.vwr.com/store/product?keyword=97015-738
A128: 259 | B128: ORION DURAPROBE 4-CELL CONDUCTIVITY PROBES 3 METER | D128: 10010-696 | E128: 013005MD | F128: EA | G128: 1 | H128: $1,059.81 | I128: 44% | J128: $593.88 | K128: Electrodes | L128: https://us.vwr.com/store/product?keyword=10010-696
A129: 252 | B129: ACCUMET GAS-SENSING COMBINATION ISES | D129: 10010-804 | E129: 9512BNWP | F129: EA | G129: 1 | H129: $1,361.33 | I129: 46% | J129: =(H129)-(H129*I129) -> $739.45 | K129: Electrodes | L129: https://us.vwr.com/store/product?keyword=10010-804
A130: 255 | B130: ORION™ RDO™ PROBE OPTICAL CAP REPLACEMENT | D130: 97015-850 | E130: 87001 | F130: EA | G130: 1 | H130: $249.02 | I130: 51% | J130: $123.07 | K130: Electrodes | L130: https://us.vwr.com/store/product?keyword=97015-850
A131: 249 | B131: PH ELECTRODE CLEANING AND STORAGE SOLUTIONS 475 ML | C131: X | D131: 14004-272 | E131: 810001 | F131: EA | G131: 1 | H131: $159.93 | I131: 44% | J131: $90.04 | K131: Electrolytes | L131: https://us.vwr.com/store/product?keyword=14004-272
A132: 2 | B132: TISAB III CONC 1 PINT | C132: X | D132: 34111-727 | E132: 940911 | F132: EA | G132: 1 | H132: $321.37 | I132: 48% | J132: $168.50 | K132: Electrolytes | L132: https://us.vwr.com/store/product?keyword=34111-727
A133: 181 | B133: ACRYLAMIDE:BISACRYLAMIDE 29:1 | C133: X | D133: 97064-556 | E133: 97064-556 | F133: EA | G133: 1 | H133: $91.57 | I133: 30% | J133: $64.21 | K133: Electrophoresis Gels | L133: https://us.vwr.com/store/product?keyword=97064-556
A134: 180 | B134: AGAROSE LOW EEO 100G | C134: X | D134: 97062-244 | E134: 97062-244 | F134: EA | G134: 1 | H134: $297.73 | I134: 37% | J134: $187.22 | K134: Electrophoresis Gels | L134: https://us.vwr.com/store/product?keyword=97062-244
A135: 185 | B135: GENERULER 100BP RTU 5X50UG | C135: X | D135: 12001-730 | E135: 50322 | F135: EA | G135: 1 | H135: $227.63 | I135: 29% | J135: $161.84 | K135: Electrophoresis Reagents | L135: https://us.vwr.com/store/product?keyword=12001-730
A136: 175 | B136: GEL SYSTEM MINI 7CMX8CM | C136: X | D136: 89032-288 | E136: 89032-288 | F136: EA | G136: 1 | H136: $1,201.00 | I136: 77% | J136: $270.93 | K136: Electrophoresis Systems | L136: https://us.vwr.com/store/product?keyword=89032-288
A137: 83 | B137: IV TISSUE CASSETTES WHITE 1000/CS | C137: X | D137: 76214-192 | E137: M505-2T | F137: CS | G137: 1000 | H137: $374.28 | I137: 67% | J137: $125.23 | K137: Embedding Cassettes | L137: https://us.vwr.com/store/product?keyword=76214-192
A138: 288 | B138: CHLORIDE COLOR REAG, 1 L | D138: RC1940-32 | E138: R1940000-1C | F138: EA | G138: 1 | H138: $170.94 | I138: 57% | J138: $73.74 | K138: Environmental Test Kits | L138: https://us.vwr.com/store/product?keyword=RC1940-32
A139: 233 | B139: LAMOTTE DC1500 CHLORINE COLORIMETER KIT - DPD TABLET | C139: X | D139: 82013-842 | E139: P6743-H | F139: EA | G139: 1 | H139: $177.73 | I139: 93% | J139: $12.70 | K139: Environmental Test Kits | L139: https://us.vwr.com/store/product?keyword=82013-842
A140: 189 | B140: MODIFIED TRYPSIN SEQ GRD 100UG | C140: X | D140: 101228-584 | E140: P8101S | F140: EA | G140: 1 | H140: $92.25 | I140: 2% | J140: $90.56 | K140: Enzymes | L140: https://us.vwr.com/store/product?keyword=101228-584
A141: 182 | B141: ETHIDIUM BROMIDE 10ML | C141: X | D141: 97064-970 | E141: 97064-970 | F141: EA | G141: 1 | H141: $63.90 | I141: 46% | J141: $34.41 | K141: Ethidium bromide | L141: https://us.vwr.com/store/product?keyword=97064-970
A142: 17 | B142: ETHYL ACETATE ACS-CERTIFIED 20L | C142: X | D142: EM-EX0240-3 | E142: EX0240-3 | F142: EA | G142: 1 | H142: $1,429.71 | I142: 89% | J142: $163.41 | K142: Ethyl acetate | L142: https://us.vwr.com/store/product?keyword=EM-EX0240-3
A143: 153 | B143: BUCHI ROTAVAPOR R-300 | C143: X | D143: 10023-926 | E143: 11R300252V002 | F143: EA | G143: 1 | H143: $9,162.69 | I143: 28% | J143: $6,571.27 | K143: Evaporators | L143: https://us.vwr.com/store/product?keyword=10023-926
A144: 157 | B144: FLTR PROWEIGH FOR TSS 100/PK | D144: 76436-922 | E144: F93442MM | F144: PK | G144: 100 | H144: $124.98 | I144: 11% | J144: $111.64 | K144: Filters | L144: https://us.vwr.com/store/product?keyword=76436-922
A145: 149 | B145: MIDI 40 INLET FILTERS | D145: MSPP-770001TS | E145: 770001 | F145: EA | G145: 1 | H145: $23.38 | I145: 14% | J145: $20.15 | K145: Filters | L145: https://us.vwr.com/store/product?keyword=MSPP-770001TS
A146: 101 | B146: HEPA FILTER 99.997% EFFICIENT | C146: X | D146: 76436-630 | E146: ALEAPFILTER | F146: PK | G146: 1 | H146: $56.70 | I146: 34% | J146: $37.49 | K146: Filters | L146: https://us.vwr.com/store/product?keyword=76436-630
A147: 166 | B147: EZ-PAK MEMBRANES HAWG 47Q6000 600/PK | D147: 13500-162 | E147: 10407332 | F147: PK | G147: 400 | H147: $663.30 | I147: 35% | J147: $433.62 | K147: Filters | L147: https://us.vwr.com/store/product?keyword=13500-162
A148: 162 | B148: AMICN ULTRA CNTRFUGL 15ML 24PK | D148: 89131-972 | E148: MAP003C36 | F148: PK | G148: 6 | H148: $97.48 | I148: 35% | J148: $63.29 | K148: Filters | L148: https://us.vwr.com/store/product?keyword=89131-972
A149: 164 | B149: MF-MILLIPORE MEMBRANE FILTER, 0.45 ΜM 100/PACK | C149: X | D149: 28148-584 | E149: 63069 | F149: PK | G149: 100 | H149: $218.84 | I149: 37% | J149: $137.98 | K149: Filters | L149: https://us.vwr.com/store/product?keyword=28148-584
A150: 167 | B150: 300ML GRADUATED FUNNEL 1CS | D150: 71001-594 | E150: 33971-300 | F150: CS | G150: 1 | H150: $149.44 | I150: 39% | J150: $91.73 | K150: Filters | L150: https://us.vwr.com/store/product?keyword=71001-594
A151: 160 | B151: FLTR BTLTOP 45MM 500ML 12/CS | D151: 28199-307 | E151: 291-4520 | F151: CS | G151: 12 | H151: $215.05 | I151: 41% | J151: $126.99 | K151: Filters | L151: https://us.vwr.com/store/product?keyword=28199-307
A152: 168 | B152: FILTER PAPER 7CM 100/PK | C152: X | D152: 28450-070 | E152: 1001-070 | F152: PK | G152: 100 | H152: $18.28 | I152: 41% | J152: $10.76 | K152: Filters | L152: https://us.vwr.com/store/product?keyword=28450-070
A153: 165 | B153: STERILE SYRINGE FILTERS CA,0.8UM,25MM 50/CS | D153: 10218-474 | E153: 723-2580 | F153: CS | G153: 50 | H153: $303.00 | I153: 44% | J153: $169.33 | K153: Filters | L153: https://us.vwr.com/store/product?keyword=10218-474
A154: 163 | B154: BINDER-FREE GLASS MICROFIBER FILTERS GF/F CIRCLES 100/PACK | D154: 28497-925 | E154: 1825-025 | F154: PK | G154: 100 | H154: $187.16 | I154: 49% | J154: $94.70 | K154: Filters | L154: https://us.vwr.com/store/product?keyword=28497-925
A155: 161 | B155: HEPA-VENT 10/PK | D155: 28137-860 | E155: 6723-5000 | F155: PK | G155: 10 | H155: $189.89 | I155: 55% | J155: $85.46 | K155: Filters | L155: https://us.vwr.com/store/product?keyword=28137-860
A156: 159 | B156: FLTR PPR GR1 9CM 100/PK | C156: X | D156: 28306-095 | E156: 28306-095 | F156: PK | G156: 100 | H156: $43.81 | I156: 79% | J156: $9.05 | K156: Filters | L156: https://us.vwr.com/store/product?keyword=28306-095
A157: 246 | B157: CAP MEMBRANE KIT INC ELECT 6PK | D157: 52457-598 | E157: 59880 | F157: EA | G157: 1 | H157: $134.07 | I157: 53% | J157: $62.77 | K157: Filters | L157: https://us.vwr.com/store/product?keyword=52457-598
A158: 186 | B158: MULTIBARRIER LG POUCH-100/PK | C158: X | D158: 10035-594 | E158: 155845 | F158: PK | G158: 100 | H158: $289.47 | I158: 34% | J158: $190.78 | K158: Filters | L158: https://us.vwr.com/store/product?keyword=10035-594
A159: 142 | B159: HOLLOW FIBER FILTER .2MIC | D159: 26280-025 | E159: 26280-025 | F159: EA | G159: 1 | H159: $198.53 | I159: 66% | J159: $67.30 | K159: Filters | L159: https://us.vwr.com/store/product?keyword=26280-025
A160: 381 | B160: EYE WASH BOTTLE 16OZ | C160: X | D160: 76049-014 | E160: 24-101-001 | F160: EA | G160: 1 | H160: $22.41 | I160: 65% | J160: $7.76 | K160: First Aid Supplies | L160: https://us.vwr.com/store/product?keyword=76049-014
A161: 343 | B161: CELLINE 15 ML BIOREACTOR FLASK | D161: 89237-446 | E161: WCL1000-1 | F161: CS | G161: 1 | H161: $488.19 | I161: 40% | J161: $293.76 | K161: Flasks | L161: https://us.vwr.com/store/product?keyword=89237-446
A162: 333 | B162: PYREX NARROW MOUTH HEAVY-DUTY GLASS ERLENMEYER FLASK 250 ML 12/PK | D162: 29136-060 | E162: 4980-250 | F162: PK | G162: 12 | H162: $142.79 | I162: 67% | J162: $46.88 | K162: Flasks | L162: https://us.vwr.com/store/product?keyword=29136-060
A163: 344 | B163: BIOLITE 75CM2 FLSK VENT 100/CS | D163: 10062-860 | E163: 10062-860 | F163: CS | G163: 100 | H163: $491.57 | I163: 85% | J163: $72.50 | K163: Flasks | L163: https://us.vwr.com/store/product?keyword=10062-860
A164: 10 | B164: FLUORESCAMINE 100MG | C164: X | D164: TCF0192-100MG | E164: F0192-100MG | F164: EA | G164: 1 | H164: $76.06 | I164: 22% | J164: $59.26 | K164: Fluorescamine | L164: https://us.vwr.com/store/product?keyword=TCF0192-100MG
A165: 296 | B165: FLUORIDE STD, 1000 PPM, 120 ML | D165: RC3173-4 | E165: R3173000-120A | F165: EA | G165: 1 | H165: $45.45 | I165: 61% | J165: $17.59 | K165: FLUORIDE IC standard (no category) | L165: https://us.vwr.com/store/product?keyword=RC3173-4
A166: 393 | B166: DISSECT FORCEPS ECONOMY 4.5IN | D166: 89259-944 | E166: 89259-944 | F166: EA | G166: 1 | H166: $18.16 | I166: 81% | J166: $3.39 | K166: Forceps | L166: https://us.vwr.com/store/product?keyword=89259-944
A167: 290 | B167: PROTOCOL 10% BUFF FORMALN 5GAL | C167: X | D167: 10790-714 | E167: 10790-714 | F167: EA | G167: 1 | H167: $55.92 | I167: 91% | J167: $5.28 | K167: Formalin | L167: https://us.vwr.com/store/product?keyword=10790-714
A168: 44 | B168: 2.5 LITER BENCHTOP FREEZE DRYER PTFE 115V 60HZ | D168: 75999-788 | E168: 700202000 | F168: EA | G168: 1 | H168: $14,459.62 | I168: 35% | J168: $9,330.43 | K168: Freeze Dryers | L168: https://us.vwr.com/store/product?keyword=75999-788
A169: 88 | B169: ISOTEMP 5.5CUBIC FEET 120V/60HZ | D169: 76514-186 | E169: 76514-186 | F169: EA | G169: 1 | H169: $1,710.30 | I169: 21% | J169: $1,342.68 | K169: Freezers | L169: https://us.vwr.com/store/product?keyword=76514-186
A170: 89 | B170: ISOTEMP -86C 20 CUBIC FEET 115V | D170: 76514-176 | E170: 76514-176 | F170: EA | G170: 1 | H170: $12,360.77 | I170: 23% | J170: $9,503.21 | K170: Freezers | L170: https://us.vwr.com/store/product?keyword=76514-176
A171: 215 | B171: RADIATION DETECTOR | D171: 76299-468 | E171: FRISKER | F171: EA | G171: 1 | H171: $1,793.14 | I171: 66% | J171: $601.37 | K171: Frisker Radiation Detector F/Leak Test (no category) | L171: https://us.vwr.com/store/product?keyword=76299-468
A172: 53 | B172: NEUTRODINE MOLECULAR FILTER | D172: 10746-776 | E172: 9577400 | F172: EA | G172: 1 | H172: $1,730.00 | I172: 26% | J172: $1,280.59 | K172: Fume Hoods and Enclosures | L172: https://us.vwr.com/store/product?keyword=10746-776
A173: 102 | B173: MY MODEL PCR CLEANPREP DEAD AIR BOX ENCLOSURE | D173: 10783-132 | E173: 10783-132 | F173: EA | G173: 1 | H173: $3,523.60 | I173: 35% | J173: $2,283.45 | K173: Fume Hoods and Enclosures | L173: https://us.vwr.com/store/product?keyword=10783-132
A174: 105 | B174: TYPE A2 BIOLOGICAL SAFETY CABINET, 120V 50/60HZ | D174: 76319-220 | E174: 302380101 | F174: EA | G174: 1 | H174: $15,570.00 | I174: 31% | J174: $10,709.52 | K174: Fume Hoods and Enclosures | L174: https://us.vwr.com/store/product?keyword=76319-220
A175: 103 | B175: NONVENTILATED PCR AND TISSUE CULTURE ENCLOSURES 115V | C175: X | D175: 10783-132 | E175: 10783-132 | F175: EA | G175: 1 | H175: $3,523.60 | I175: 35% | J175: $2,283.45 | K175: Fume Hoods and Enclosures | L175: https://us.vwr.com/store/product?keyword=10783-132
A176: 368 | B176: FUNNEL 60MM DISP PS 100/CS | C176: X | D176: 76521-498 | E176: 208-5122-010 | F176: CT | G176: 100 | H176: $42.24 | I176: 32% | J176: $28.66 | K176: Funnels | L176: https://us.vwr.com/store/product?keyword=76521-498
A177: 366 | B177: FUNNEL 60MM DISP PS 100/CS | C177: X | D177: 414004-290 | E177: 414004-290 | F177: CS | G177: 100 | H177: $78.76 | I177: 78% | J177: $17.52 | K177: Funnels | L177: https://us.vwr.com/store/product?keyword=414004-290
A178: 229 | B178: DE TUBE HYDROGEN SULFIDE 2/A 10/PK | C178: X | D178: 13453-144 | E178: 8101461 | F178: PK | G178: 10 | H178: $209.30 | I178: 50% | J178: $104.65 | K178: Gas Detection Systems | L178: https://us.vwr.com/store/product?keyword=13453-144
A179: 46 | B179: HYDROGEN CARRIER GAS GENERATOR | C179: X | D179: 103549-768 | E179: 63-0100 | F179: EA | G179: 1 | H179: $9,502.25 | I179: 6% | J179: $8,923.92 | K179: Gas Generators | L179: https://us.vwr.com/store/product?keyword=103549-768
A180: 55 | B180: INLET PRESSURE REGULATOR | D180: 55850-420 | E180: 55850-420 | F180: EA | G180: 1 | H180: $672.50 | I180: 69% | J180: $207.82 | K180: Gas Regulators | L180: https://us.vwr.com/store/product?keyword=55850-420
A181: 45 | B181: PARAFILM 4 IN X 250FT/RL | C181: X | D181: 89031-575 | E181: DS4-250 | F181: EA | G181: 1 | H181: $127.38 | I181: 65% | J181: $44.79 | K181: General Purpose Sealing Films | L181: https://us.vwr.com/store/product?keyword=89031-575
A182: 92 | B182: FLASKSCRUBBER GLASSWARE WASHER 115 V, 50/60 HZ | C182: X | D182: 76420-708 | E182: 411001000 | F182: EA | G182: 1 | H182: $15,620.00 | I182: 20% | J182: $12,421.02 | K182: Glassware Washers | L182: https://us.vwr.com/store/product?keyword=76420-708
A183: 382 | B183: NITRILE GLOVES BLUE SIZE L 180/PK | D183: 76449-368 | E183: 76449-368 | F183: PK | G183: 100 | H183: $29.56 | I183: 43% | J183: $16.73 | K183: Gloves | L183: https://us.vwr.com/store/product?keyword=76449-368
A184: 384 | B184: HONEYWELL DEXI-TASK POWDER FREE NITRILE GLOVES SIZE M 1000/CASE | C184: X | D184: 89022-062 | E184: LA049PF/M | F184: CS | G184: 1000 | H184: $258.99 | I184: 72% | J184: $73.71 | K184: Gloves | L184: https://us.vwr.com/store/product?keyword=89022-062
A185: 396 | B185: HONEYWELL UVEX FUTURA CHEMICAL-SPLASH GOGGLES | D185: 33002-179 | E185: S345C | F185: PK | G185: 10 | H185: $280.90 | I185: 67% | J185: $93.90 | K185: Goggles | L185: https://us.vwr.com/store/product?keyword=33002-179
A186: 389 | B186: CHEMICAL SPLASH AND IMPACT GOGGLES | C186: X | D186: 80800-004 | E186: 2410F | F186: EA | G186: 1 | H186: $31.91 | I186: 83% | J186: $5.40 | K186: Goggles | L186: https://us.vwr.com/store/product?keyword=80800-004
A187: 25 | B187: TAQ DNA POLYMERASE, 5U/ΜL, 500 UNITS | D187: 76201-536 | E187: D4005 | F187: EA | G187: 1 | H187: $159.58 | I187: 10% | J187: $144.05 | K187: GOTAQ MDX TAQ POLYMERASE | L187: https://us.vwr.com/store/product?keyword=76201-536
A188: 65 | B188: LOWER HEMISPHERICAL CLOTH HEATING MANTLE 120V 100ML | D188: 14201-166 | E188: LG-8800-102 | F188: EA | G188: 1 | H188: $304.35 | I188: 37% | J188: $191.46 | K188: Heaters | L188: https://us.vwr.com/store/product?keyword=14201-166
A189: 63 | B189: NEOPRENE HOSE FOR BUNSEN BURNER | D189: 470344-234 | E189: CH0100A | F189: EA | G189: 1 | H189: $24.10 | I189: 37% | J189: $15.09 | K189: Heaters | L189: https://us.vwr.com/store/product?keyword=470344-234
A190: 64 | B190: SAND BATH HEATING MANTLE 100ML 115V | D190: KT720500-0101 | E190: 720500-0101 | F190: CS | G190: 1 | H190: $512.85 | I190: 55% | J190: $229.30 | K190: Heaters | L190: https://us.vwr.com/store/product?keyword=KT720500-0101
A191: 11 | B191: HEXANES ACS 20L | D191: BDH1129-19L | E191: BDH1129-19L | F191: EA | G191: 1 | H191: $243.22 | I191: 68% | J191: $77.83 | K191: Hexane | L191: https://us.vwr.com/store/product?keyword=BDH1129-19L
A192: 58 | B192: PT 2500E HOMOGENIZER 115V | D192: 97057-700 | E192: 11010058 | F192: EA | G192: 1 | H192: $2,900.99 | I192: 27% | J192: $2,119.82 | K192: Homogenizers | L192: https://us.vwr.com/store/product?keyword=97057-700
A193: 59 | B193: LABORATORY BLENDER 40 OZ GL CONTR 120V60H | C193: X | D193: 470006-518 | E193: 700G | F193: EA | G193: 1 | H193: $439.00 | I193: 35% | J193: =(H193)-(H193*I193) -> $286.11 | K193: Homogenizers | L193: https://us.vwr.com/store/product?keyword=470006-518
A194: 80 | B194: 120 WATT SONIC DISMEMBRATOR 100V | C194: X | D194: 76193-588 | E194: 76193-588 | F194: EA | G194: 1 | H194: $3,804.88 | I194: 37% | J194: $2,412.40 | K194: Homogenizers | L194: https://us.vwr.com/store/product?keyword=76193-588
A195: 277 | B195: LYSING MATRIX B 500X 2ML TUBES | D195: 75784-618 | E195: 116911500 | F195: PK | G195: 500 | H195: $1,564.75 | I195: 48% | J195: $818.51 | K195: Homogenizers | L195: https://us.vwr.com/store/product?keyword=75784-618
A196: 62 | B196: LARGE TISSUE GRINDER 50ML 10/CS | D196: 47732-450 | E196: 47732-450 | F196: CS | G196: 10 | H196: $235.95 | I196: 72% | J196: $65.27 | K196: Homogenizers | L196: https://us.vwr.com/store/product?keyword=47732-450
A197: 380 | B197: HOT-HAND SILICONE RUBBER GRIP MITTS | D197: 89094-596 | E197: F38000-0001 | F197: EA | G197: 1 | H197: $46.57 | I197: 67% | J197: $15.27 | K197: Hot Hand Protectors | L197: https://us.vwr.com/store/product?keyword=89094-596
A198: 298 | B198: HYDROCHLORIC ACID, 10% V/V, 4L | D198: RCR3570400-4A | E198: R3570400-4A | F198: EA | G198: 1 | H198: $34.78 | I198: 56% | J198: $15.35 | K198: Hydrochloric acid | L198: https://us.vwr.com/store/product?keyword=RCR3570400-4A
A199: 29 | B199: HYDROCHLORIC ACID REAG ACS 21/2L | C199: X | D199: EMD-HX0603-3 | E199: HX0603-3 | F199: EA | G199: 1 | H199: $93.04 | I199: 74% | J199: $23.92 | K199: Hydrochloric acid | L199: https://us.vwr.com/store/product?keyword=EMD-HX0603-3
A200: 311 | B200: HYDROGEN PEROXIDE 30% CR 100ML | D200: MK524002 | E200: MK524002 | F200: EA | G200: 1 | H200: $77.53 | I200: 64% | J200: $28.26 | K200: Hydrogen peroxide | L200: https://us.vwr.com/store/product?keyword=MK524002
... 200 more rows

Sheet Band 1 Sheet 3
H1: RFP20232032 Laboratory Equipment and Supplies
H2: VWR International, LLC
H4: Categories with Minimum Discounts
H5: Category | I5: Minimum Discount
B6: BDH1131-1LP | C6: BDH1131-1LP | D6: EA | E6: 1 | F6: $40.10 | G6: =(F6)-(F6*#REF!) ->  | H6: 2-Propanol | I6: 82%
B7: BDH1101-19L | C7: BDH1101-19L | D7: EA | E7: 1 | F7: $293.67 | G7: =(F7)-(F7*#REF!) ->  | H7: Acetone | I7: 75%
B8: BDH1164-4LP | C8: BDH1164-4LP | D8: EA | E8: 1 | F8: $80.16 | G8: =(F8)-(F8*#REF!) ->  | H8: Alcohol | I8: 61%
A9: X | B9: 100496-118 | C9: 60400 | D9: EA | E9: 1 | F9: $98.56 | G9: =(F9)-(F9*#REF!) ->  | H9: Aluminum Foil | I9: 43%
A10: X | B10: EMAX1270-1 | C10: AX1270-1 | D10: EA | E10: 1 | F10: $106.44 | G10: =(F10)-(F10*#REF!) ->  | H10: Ammonium chloride | I10: 64%
B11: 90003-642 | C11: 260678 | D11: PK | E11: 20 | F11: $184.77 | G11: =(F11)-(F11*#REF!) ->  | H11: Anaerobic Systems | I11: 47%
B12: 97021-958 | C12: 83999801 | D12: EA | E12: 1 | F12: $3,836.22 | G12: =(F12)-(F12*#REF!) ->  | H12: Analyzers | I12: 22%
A13: X | B13: 10167-134 | C13: GTX228416-01 | D13: EA | E13: 1 | F13: $231.64 | G13: =(F13)-(F13*#REF!) ->  | H13: Antibodies | I13: 29%
B14: 11217-558 | C14: BLP1000 | D14: CS | E14: 25 | F14: $57.08 | G14: =(F14)-(F14*#REF!) ->  | H14: Bags | I14: 55%
B15: 76292-098 | C15: 30355500 | D15: EA | E15: 1 | F15: $9,445.00 | G15: =(F15)-(F15*#REF!) ->  | H15: Balances and Scales | I15: 23%
A16: X | B16: 10805-308 | C16: TSSWB15 | D16: EA | E16: 1 | F16: $3,621.94 | G16: =(F16)-(F16*#REF!) ->  | H16: Baths | I16: 27%
A17: X | B17: 48300-448 | C17: 3000900 | D17: PK | E17: 1 | F17: $47.83 | G17: =(F17)-(F17*#REF!) ->  | H17: Beads | I17: 41%
A18: X | B18: 75990-504 | C18: 6885-DB | D18: CS | E18: 1 | F18: $735.68 | G18: =(F18)-(F18*#REF!) ->  | H18: Block Heaters | I18: 32%
A19: X | B19: 10804-085 | C19: AT1022 | D19: BX | E19: 100 | F19: $29.65 | G19: =(F19)-(F19*#REF!) ->  | H19: Blood Lancets | I19: 38%
A20: X | B20: 10806-406 | C20: 10806-406 | D20: PK | E20: 12 | F20: $2,603.86 | G20: =(F20)-(F20*#REF!) ->  | H20: Boats | I20: 51%
B21: 26397-103 | C21: D1069103 | D21: EA | E21: 1 | F21: $274.71 | G21: =(F21)-(F21*#REF!) ->  | H21: Boiling Stones | I21: 68%
A22: X | B22: 101204-176 | C22: 1267-20L | D22: EA | E22: 1 | F22: $152.46 | G22: =(F22)-(F22*#REF!) ->  | H22: BORIC ACID 4% INDICATING 20L | I22: 47%
B23: 16429-012 | C23: 15040D-3001 | D23: CS | E23: 6 | F23: $35.16 | G23: =(F23)-(F23*#REF!) ->  | H23: Bottles | I23: 53%
A24: X | B24: 89214-750 | C24: 89214-750 | D24: EA | E24: 1 | F24: $2.78 | G24: =(F24)-(F24*#REF!) ->  | H24: Boxes | I24: 62%
B25: TS10668-2500 | C25: 10668-2500 | D25: EA | E25: 1 | F25: $49.76 | G25: =(F25)-(F25*#REF!) ->  | H25: Bromobenzene | I25: 31%
B26: BDH7393-2 | C26: BDH7393-2 | D26: EA | E26: 1 | F26: $58.68 | G26: =(F26)-(F26*#REF!) ->  | H26: Bromothymol blue sodium salt | I26: 60%
B27: 97063-692 | C27: 97063-692 | D27: EA | E27: 1 | F27: $220.98 | G27: =(F27)-(F27*#REF!) ->  | H27: Buffers | I27: 29%
A28: X | B28: 19420-034 | C28: 1341EB | D28: EA | E28: 1 | F28: $14,518.60 | G28: =(F28)-(F28*#REF!) ->  | H28: Calorimeters | I28: 42%
B29: 97005-266 | C29: 97005-266 | D29: EA | E29: 1 | F29: $706.42 | G29: =(F29)-(F29*#REF!) ->  | H29: Carts | I29: 66%
B30: 23609-102 | C30: 23609-102 | D30: EA | E30: 1 | F30: $76.10 | G30: =(F30)-(F30*#REF!) ->  | H30: Cash and Check Handling Supplies | I30: 79%
A31: X | B31: 470309-548 | C31: CTL-DIFD-08KP | D31: EA | E31: 1 | F31: $284.60 | G31: =(F31)-(F31*#REF!) ->  | H31: Cell Counters and Flow Cytometers | I31: 26%
A32: X | B32: 16777-145 | C32: SH30027.01 | D32: EA | E32: 1 | F32: $30.61 | G32: =(F32)-(F32*#REF!) ->  | H32: Cell Culture Media | I32: 84%
A33: X | B33: PI78440 | C33: 78440 | D33: EA | E33: 1 | F33: $298.00 | G33: =(F33)-(F33*#REF!) ->  | H33: Cell Culture Supplements and Additives | I33: 4%
B34: 76036-004 | C34: 76036-004 | D34: CS | E34: 100 | F34: $140.86 | G34: =(F34)-(F34*#REF!) ->  | H34: Cell Scrapers | I34: 74%
B35: 76327-102 | C35: 76327-102 | D35: PK | E35: 50 | F35: $167.27 | G35: =(F35)-(F35*#REF!) ->  | H35: Cell Strainers | I35: 76%
A36: X | B36: BK363934 | C36: 363934 | D36: EA | E36: 1 | F36: $12,007.52 | G36: =(F36)-(F36*#REF!) ->  | H36: Centrifuges | I36: 24%
A37: X | B37: 100190-210 | C37: RS-9782 | D37: EA | E37: 1 | F37: $180.83 | G37: =(F37)-(F37*#REF!) ->  | H37: Chisels | I37: 1%
A38: X | B38: TCC0583-100G | C38: C0583-100G | D38: EA | E38: 1 | F38: $75.64 | G38: =(F38)-(F38*#REF!) ->  | H38: Chloroform-[D1] | I38: 28%
A39: X | B39: 10849-894 | C39: 42301 | D39: EA | E39: 1 | F39: $444.96 | G39: =(F39)-(F39*#REF!) ->  | H39: Chromatography Columns | I39: 23%
B40: 89202-910 | C40: 89202-910 | D40: EA | E40: 1 | F40: $2,050.73 | G40: =(F40)-(F40*#REF!) ->  | H40: Circulating Thermostats | I40: 32%
A41: X | B41: 80063-652 | C41: CG-9250-01 | D41: EA | E41: 1 | F41: $35.90 | G41: =(F41)-(F41*#REF!) ->  | H41: Clamps | I41: 37%
A42: X | B42: 60787-682 | C42: 4522200 | D42: EA | E42: 1 | F42: $39.00 | G42: =(F42)-(F42*#REF!) ->  | H42: Cleaning Agents | I42: 23%
B43: BD367874 | C43: 367874 | D43: PK | E43: 100 | F43: $108.20 | G43: =(F43)-(F43*#REF!) ->  | H43: Clinical Diagnostic Systems | I43: 46%
B44: 53512-624 | C44: 22820109 | D44: EA | E44: 1 | F44: $17,845.10 | G44: =(F44)-(F44*#REF!) ->  | H44: Concentrators | I44: 43%
B45: 60004-122 | C45: C221420 | D45: EA | E45: 1 | F45: $44.03 | G45: =(F45)-(F45*#REF!) ->  | H45: Condensers | I45: 62%
B46: 414004-284 | C46: 414004-284 | D46: EA | E46: 1 | F46: $122.20 | G46: =(F46)-(F46*#REF!) ->  | H46: Coolers | I46: 66%
B47: 16007-000 | C47: 16007-000 | D47: PK | E47: 10 | F47: $171.61 | G47: =(F47)-(F47*#REF!) ->  | H47: Cover Glasses | I47: 90%
A48: X | B48: 60003-352 | C48: F773030M | D48: EA | E48: 1 | F48: $37.45 | G48: =(F48)-(F48*#REF!) ->  | H48: Crucibles | I48: 62%
B49: 28145-473 | C49: 7231 | D49: PK | E49: 100 | F49: $133.16 | G49: =(F49)-(F49*#REF!) ->  | H49: Culture Dishes | I49: 39%
A50: X | B50: 89090-114 | C50: 70075-100 | D50: CS | E50: 12 | F50: $187.40 | G50: =(F50)-(F50*#REF!) ->  | H50: Cylinders | I50: 40%
B51: BDH9230-500G | C51: BDH9230-500G | D51: EA | E51: 1 | F51: $77.72 | G51: =(F51)-(F51*#REF!) ->  | H51: D(+)-Glucose | I51: 61%
B52: 32800-012 | C52: 32800-012 | D52: EA | E52: 1 | F52: $1,155.42 | G52: =(F52)-(F52*#REF!) ->  | H52: Desiccators | I52: 60%
B53: 89057-548 | C53: 7075-15 | D53: EA | E53: 1 | F53: $303.67 | G53: =(F53)-(F53*#REF!) ->  | H53: Dewars and Cryogenic Vessels | I53: 26%
B54: BDH1121-4LPC | C54: BDH1121-4LPC | D54: EA | E54: 1 | F54: $474.42 | G54: =(F54)-(F54*#REF!) ->  | H54: Diethyl ether | I54: 82%
B55: 25227-094 | C55: 4749 | D55: EA | E55: 1 | F55: $1,421.22 | G55: =(F55)-(F55*#REF!) ->  | H55: Digestion Systems | I55: 44%
A56: X | B56: 10815-740 | C56: 10046 | D56: CS | E56: 25 | F56: $396.94 | G56: =(F56)-(F56*#REF!) ->  | H56: Disposable Garments | I56: 40%
B57: RC2700-16 | C57: R2700000-500A | D57: EA | E57: 1 | F57: $36.42 | G57: =(F57)-(F57*#REF!) ->  | H57: EDTA disodium salt | I57: 56%
A58: X | B58: 10821-410 | C58: 30266627 | D58: EA | E58: 1 | F58: $900.00 | G58: =(F58)-(F58*#REF!) ->  | H58: Electrochemical Meters | I58: 22%
A59: X | B59: 97001-588 | C59: 51343050 | D59: EA | E59: 1 | F59: $292.00 | G59: =(F59)-(F59*#REF!) ->  | H59: Electrodes | I59: 17%
A60: X | B60: 14004-272 | C60: 810001 | D60: EA | E60: 1 | F60: $159.93 | G60: =(F60)-(F60*#REF!) ->  | H60: Electrolytes | I60: 44%
A61: X | B61: 97064-556 | C61: 97064-556 | D61: EA | E61: 1 | F61: $91.57 | G61: =(F61)-(F61*#REF!) ->  | H61: Electrophoresis Gels | I61: 30%
A62: X | B62: 12001-730 | C62: 50322 | D62: EA | E62: 1 | F62: $227.63 | G62: =(F62)-(F62*#REF!) ->  | H62: Electrophoresis Reagents | I62: 29%
A63: X | B63: 89032-288 | C63: 89032-288 | D63: EA | E63: 1 | F63: $1,201.00 | G63: =(F63)-(F63*#REF!) ->  | H63: Electrophoresis Systems | I63: 77%
A64: X | B64: 76214-192 | C64: M505-2T | D64: CS | E64: 1000 | F64: $374.28 | G64: =(F64)-(F64*#REF!) ->  | H64: Embedding Cassettes | I64: 67%
B65: RC1940-32 | C65: R1940000-1C | D65: EA | E65: 1 | F65: $170.94 | G65: =(F65)-(F65*#REF!) ->  | H65: Environmental Test Kits | I65: 57%
A66: X | B66: 101228-584 | C66: P8101S | D66: EA | E66: 1 | F66: $92.25 | G66: =(F66)-(F66*#REF!) ->  | H66: Enzymes | I66: 2%
A67: X | B67: 97064-970 | C67: 97064-970 | D67: EA | E67: 1 | F67: $63.90 | G67: =(F67)-(F67*#REF!) ->  | H67: Ethidium bromide | I67: 46%
A68: X | B68: EM-EX0240-3 | C68: EX0240-3 | D68: EA | E68: 1 | F68: $1,429.71 | G68: =(F68)-(F68*#REF!) ->  | H68: Ethyl acetate | I68: 89%
A69: X | B69: 10023-926 | C69: 11R300252V002 | D69: EA | E69: 1 | F69: $9,162.69 | G69: =(F69)-(F69*#REF!) ->  | H69: Evaporators | I69: 28%
B70: 76436-922 | C70: F93442MM | D70: PK | E70: 100 | F70: $124.98 | G70: =(F70)-(F70*#REF!) ->  | H70: Filters | I70: 11%
A71: X | B71: 76049-014 | C71: 24-101-001 | D71: EA | E71: 1 | F71: $22.41 | G71: =(F71)-(F71*#REF!) ->  | H71: First Aid Supplies | I71: 65%
B72: 89237-446 | C72: WCL1000-1 | D72: CS | E72: 1 | F72: $488.19 | G72: =(F72)-(F72*#REF!) ->  | H72: Flasks | I72: 40%
A73: X | B73: TCF0192-100MG | C73: F0192-100MG | D73: EA | E73: 1 | F73: $76.06 | G73: =(F73)-(F73*#REF!) ->  | H73: Fluorescamine | I73: 22%
B74: RC3173-4 | C74: R3173000-120A | D74: EA | E74: 1 | F74: $45.45 | G74: =(F74)-(F74*#REF!) ->  | H74: FLUORIDE IC standard | I74: 61%
B75: 89259-944 | C75: 89259-944 | D75: EA | E75: 1 | F75: $18.16 | G75: =(F75)-(F75*#REF!) ->  | H75: Forceps | I75: 81%
A76: X | B76: 10790-714 | C76: 10790-714 | D76: EA | E76: 1 | F76: $55.92 | G76: =(F76)-(F76*#REF!) ->  | H76: Formalin | I76: 91%
B77: 75999-788 | C77: 700202000 | D77: EA | E77: 1 | F77: $14,459.62 | G77: =(F77)-(F77*#REF!) ->  | H77: Freeze Dryers | I77: 35%
B78: 76514-186 | C78: 76514-186 | D78: EA | E78: 1 | F78: $1,710.30 | G78: =(F78)-(F78*#REF!) ->  | H78: Freezers | I78: 21%
B79: 76299-468 | C79: FRISKER | D79: EA | E79: 1 | F79: $1,793.14 | G79: =(F79)-(F79*#REF!) ->  | H79: Frisker Radiation Detector F/Leak Test | I79: 66%
B80: 10746-776 | C80: 9577400 | D80: EA | E80: 1 | F80: $1,730.00 | G80: =(F80)-(F80*#REF!) ->  | H80: Fume Hoods and Enclosures | I80: 26%
A81: X | B81: 76521-498 | C81: 208-5122-010 | D81: CT | E81: 100 | F81: $42.24 | G81: =(F81)-(F81*#REF!) ->  | H81: Funnels | I81: 32%
A82: X | B82: 13453-144 | C82: 8101461 | D82: PK | E82: 10 | F82: $209.30 | G82: =(F82)-(F82*#REF!) ->  | H82: Gas Detection Systems | I82: 50%
A83: X | B83: 103549-768 | C83: 63-0100 | D83: EA | E83: 1 | F83: $9,502.25 | G83: =(F83)-(F83*#REF!) ->  | H83: Gas Generators | I83: 6%
B84: 55850-420 | C84: 55850-420 | D84: EA | E84: 1 | F84: $672.50 | G84: =(F84)-(F84*#REF!) ->  | H84: Gas Regulators | I84: 69%
A85: X | B85: 89031-575 | C85: DS4-250 | D85: EA | E85: 1 | F85: $127.38 | G85: =(F85)-(F85*#REF!) ->  | H85: General Purpose Sealing Films | I85: 65%
A86: X | B86: 76420-708 | C86: 411001000 | D86: EA | E86: 1 | F86: $15,620.00 | G86: =(F86)-(F86*#REF!) ->  | H86: Glassware Washers | I86: 20%
B87: 76449-368 | C87: 76449-368 | D87: PK | E87: 100 | F87: $29.56 | G87: =(F87)-(F87*#REF!) ->  | H87: Gloves | I87: 43%
B88: 33002-179 | C88: S345C | D88: PK | E88: 10 | F88: $280.90 | G88: =(F88)-(F88*#REF!) ->  | H88: Goggles | I88: 67%
B89: 76201-536 | C89: D4005 | D89: EA | E89: 1 | F89: $159.58 | G89: =(F89)-(F89*#REF!) ->  | H89: GOTAQ MDX TAQ POLYMERASE | I89: 10%
B90: 14201-166 | C90: LG-8800-102 | D90: EA | E90: 1 | F90: $304.35 | G90: =(F90)-(F90*#REF!) ->  | H90: Heaters | I90: 37%
B91: BDH1129-19L | C91: BDH1129-19L | D91: EA | E91: 1 | F91: $243.22 | G91: =(F91)-(F91*#REF!) ->  | H91: Hexane | I91: 68%
B92: 97057-700 | C92: 11010058 | D92: EA | E92: 1 | F92: $2,900.99 | G92: =(F92)-(F92*#REF!) ->  | H92: Homogenizers | I92: 27%
B93: 89094-596 | C93: F38000-0001 | D93: EA | E93: 1 | F93: $46.57 | G93: =(F93)-(F93*#REF!) ->  | H93: Hot Hand Protectors | I93: 67%
B94: RCR3570400-4A | C94: R3570400-4A | D94: EA | E94: 1 | F94: $34.78 | G94: =(F94)-(F94*#REF!) ->  | H94: Hydrochloric acid | I94: 56%
B95: MK524002 | C95: MK524002 | D95: EA | E95: 1 | F95: $77.53 | G95: =(F95)-(F95*#REF!) ->  | H95: Hydrogen peroxide | I95: 64%
B96: 30617-754 | C96: 61801-4711 | D96: EA | E96: 1 | F96: $51.56 | G96: =(F96)-(F96*#REF!) ->  | H96: Hydrometers | I96: 60%
B97: 76459-168 | C97: 51033547 | D97: EA | E97: 1 | F97: $12,124.28 | G97: =(F97)-(F97*#REF!) ->  | H97: Incubators | I97: 26%
A98: X | B98: BJ405353-500ML | C98: 405353-500ML | D98: EA | E98: 1 | F98: $80.32 | G98: =(F98)-(F98*#REF!) ->  | H98: Iodine | I98: 42%
B99: BDH7318-1 | C99: BDH7318-1 | D99: EA | E99: 1 | F99: $62.68 | G99: =(F99)-(F99*#REF!) ->  | H99: Iron(III) chloride | I99: 61%
B100: BJ37817-1L-US | C100: 37817-6X1L-US | D100: EA | E100: 1 | F100: $63.98 | G100: =(F100)-(F100*#REF!) ->  | H100: Karl Fischer Titrants and Reagents | I100: 31%
B101: 97061-074 | C101: 97061-074 | D101: EA | E101: 1 | F101: $157.00 | G101: =(F101)-(F101*#REF!) ->  | H101: L(+)-Ascorbic acid | I101: 60%
B102: VWRL0131-0100 | C102: VWRL0131-0100 | D102: EA | E102: 1 | F102: $53.64 | G102: =(F102)-(F102*#REF!) ->  | H102: L-GLUTAMINE 200MM (100 X) | I102: 29%
A103: X | B103: 89038-006 | C103: 89038-006 | D103: PK | E103: 6 | F103: $113.23 | G103: =(F103)-(F103*#REF!) ->  | H103: Lids | I103: 77%
A104: X | B104: 10034-170 | C104: CLS-1625-100 | D104: EA | E104: 1 | F104: $515.59 | G104: =(F104)-(F104*#REF!) ->  | H104: Lights | I104: 20%
B105: 59344-055 | C105: 1597418 | D105: EA | E105: 1 | F105: $76.87 | G105: =(F105)-(F105*#REF!) ->  | H105: Lubricants | I105: 70%
B106: RC453032 | C106: R4530000-1A | D106: EA | E106: 1 | F106: $68.61 | G106: =(F106)-(F106*#REF!) ->  | H106: Magnesium sulfate | I106: 59%
A107: X | B107: 414004-662 | C107: 414004-662 | D107: CS | E107: 500 | F107: $311.10 | G107: =(F107)-(F107*#REF!) ->  | H107: Masks | I107: 93%
B108: 97063-390 | C108: 97063-390 | D108: EA | E108: 1 | F108: $188.49 | G108: =(F108)-(F108*#REF!) ->  | H108: Media for Microbiology | I108: 38%
B109: BDH85800.400 | C109: BDH85800.400 | D109: EA | E109: 1 | F109: $158.85 | G109: =(F109)-(F109*#REF!) ->  | H109: Methanol | I109: 73%
A110: X | B110: 89212-396 | C110: PLUS 384 | D110: EA | E110: 1 | F110: $51,881.05 | G110: =(F110)-(F110*#REF!) ->  | H110: Microplate Readers | I110: 8%
B111: 89429-526 | C111: 0310-5363 | D111: EA | E111: 1 | F111: $16,446.58 | G111: =(F111)-(F111*#REF!) ->  | H111: Microplate Washers | I111: 21%
A112: X | B112: 29442-120 | C112: 3422 | D112: CS | E112: 48 | F112: $426.16 | G112: =(F112)-(F112*#REF!) ->  | H112: Microplates | I112: 38%
A113: X | B113: 25608-961 | C113: 4685 | D113: PK | E113: 50 | F113: $182.83 | G113: =(F113)-(F113*#REF!) ->  | H113: Microtomes and Microtome Assemblies | I113: 44%
A114: X | B114: 76359-402 | C114: 35010023 | D114: EA | E114: 1 | F114: $8,183.74 | G114: =(F114)-(F114*#REF!) ->  | H114: Mills | I114: 28%
B115: 76001-816 | C115: GMP16OZ | D115: EA | E115: 1 | F115: $56.07 | G115: =(F115)-(F115*#REF!) ->  | H115: Mortars and Pestles | I115: 55%
B116: 82021-135 | C116: 82021-135 | D116: EA | E116: 1 | F116: $87.44 | G116: =(F116)-(F116*#REF!) ->  | H116: Notebooks | I116: 77%
B117: 101229-752 | C117: S1327S | D117: EA | E117: 1 | F117: $111.72 | G117: =(F117)-(F117*#REF!) ->  | H117: Nucleic Acid Reagents | I117: 2%
B118: 97064-778 | C118: 97064-778 | D118: EA | E118: 1 | F118: $101.05 | G118: =(F118)-(F118*#REF!) ->  | H118: Orthophosphoric acid | I118: 60%
A119: X | B119: 75846-378 | C119: FO-200CR | D119: EA | E119: 1 | F119: $3,248.50 | G119: =(F119)-(F119*#REF!) ->  | H119: Ovens | I119: 21%
B120: 28511-007 | C120: 28511-007 | D120: PK | E120: 12 | F120: $211.26 | G120: =(F120)-(F120*#REF!) ->  | H120: Paper | I120: 90%
A121: X | B121: 89370-812 | C121: 8331 | D121: CS | E121: 8 | F121: $199.97 | G121: =(F121)-(F121*#REF!) ->  | H121: Paraffin wax blended with synthetic polymers | I121: 65%
B122: 97064-692 | C122: 97064-692 | D122: EA | E122: 1 | F122: $93.92 | G122: =(F122)-(F122*#REF!) ->  | H122: Phenol : Chloroform : iso-Amyl alcohol | I122: 45%
A123: X | B123: 103544-254 | C123: S4231-50MG | D123: EA | E123: 1 | F123: $97.00 | G123: =(F123)-(F123*#REF!) ->  | H123: PILOCARPINE HCL 99.68% CAS 54-71-7 50 MG | I123: 3%
A124: X | B124: 76204-774 | C124: 3116000015 | D124: EA | E124: 1 | F124: $546.10 | G124: =(F124)-(F124*#REF!) ->  | H124: Pipette Stands | I124: 67%
A125: X | B125: 89232-946 | C125: 30089480 | D125: CS | E125: 100 | F125: $268.08 | G125: =(F125)-(F125*#REF!) ->  | H125: Pipette Tips | I125: 41%
A126: X | B126: 75874-566 | C126: 2231300023 | D126: EA | E126: 1 | F126: $305.87 | G126: =(F126)-(F126*#REF!) ->  | H126: Pipettes | I126: 22%
A127: X | B127: BT132420-500G | C127: 132420-500G | D127: EA | E127: 1 | F127: $47.29 | G127: =(F127)-(F127*#REF!) ->  | H127: Polyethylene glycol 8,000 | I127: 30%
A128: X | B128: BT220180-500ML | C128: 220180-500ML | D128: EA | E128: 1 | F128: $40.86 | G128: =(F128)-(F128*#REF!) ->  | H128: Polysorbate 20 | I128: 27%
B129: RC5875-32 | C129: R5875000-1C | D129: EA | E129: 1 | F129: $124.74 | G129: =(F129)-(F129*#REF!) ->  | H129: Potassium hydrogen diiodate | I129: 60%
B130: BDH9262-500G | C130: BDH9262-500G | D130: EA | E130: 1 | F130: $64.70 | G130: =(F130)-(F130*#REF!) ->  | H130: Potassium hydroxide | I130: 60%
A131: X | B131: 10001-844 | C131: BT402 | D131: EA | E131: 1 | F131: $960.66 | G131: =(F131)-(F131*#REF!) ->  | H131: Power Supplies | I131: 31%
B132: PIA32963 | C132: A32963 | D132: EA | E132: 1 | F132: $351.00 | G132: =(F132)-(F132*#REF!) ->  | H132: Protein Purification | I132: 2%
A133: X | B133: PAN2511 | C133: N2511 | D133: EA | E133: 1 | F133: $155.31 | G133: =(F133)-(F133*#REF!) ->  | H133: Proteins and Peptides | I133: 11%
B134: MFLX77240-20 | C134: MFLX77240-20 | D134: EA | E134: 1 | F134: $1,300.00 | G134: =(F134)-(F134*#REF!) ->  | H134: Pumps | I134: 33%
B135: 55411-050 | C135: 55411-050 | D135: PK | E135: 100 | F135: $71.01 | G135: =(F135)-(F135*#REF!) ->  | H135: Razors and Blades | I135: 93%
B136: 89094-680 | C136: 89094-680 | D136: CS | E136: 200 | F136: $181.64 | G136: =(F136)-(F136*#REF!) ->  | H136: Reagent Reservoirs | I136: 66%
A137: X | B137: 470324-710 | C137: U26-RDOB-1 | D137: EA | E137: 1 | F137: $169.29 | G137: =(F137)-(F137*#REF!) ->  | H137: REPLACEMENT DO SENSOR CAP | I137: 14%
B138: 89132-108 | C138: 7000127428 | D138: CS | E138: 5 | F138: $416.66 | G138: =(F138)-(F138*#REF!) ->  | H138: Respirators | I138: 57%
B139: 75817-994 | C139: 96-1674 | D139: CS | E139: 100 | F139: $407.72 | G139: =(F139)-(F139*#REF!) ->  | H139: Rulers | I139: 37%
B140: 89020-064 | C140: A700 | D140: EA | E140: 1 | F140: $8.96 | G140: =(F140)-(F140*#REF!) ->  | H140: Safety Glasses | I140: 76%
B141: 82030-366 | C141: 82030-366 | D141: CS | E141: 300 | F141: $320.80 | G141: =(F141)-(F141*#REF!) ->  | H141: Sample Containers | I141: 78%
B142: 76210-694 | C142: 106515 | D142: EA | E142: 1 | F142: $282.82 | G142: =(F142)-(F142*#REF!) ->  | H142: Samplers | I142: 80%
A143: X | B143: 75795-250 | C143: 372610 | D143: PK | E143: 10 | F143: $51.73 | G143: =(F143)-(F143*#REF!) ->  | H143: Scalpels and Scalpel Assemblies | I143: 51%
B144: 61000-508 | C144: 111195 | D144: EA | E144: 1 | F144: $240.99 | G144: =(F144)-(F144*#REF!) ->  | H144: Scintillation Cocktails | I144: 26%
B145: 76457-392 | C145: 76457-392 | D145: EA | E145: 1 | F145: $21.30 | G145: =(F145)-(F145*#REF!) ->  | H145: Scissors | I145: 47%
B146: 60941-072 | C146: 60941-072 | D146: CS | E146: 100 | F146: $174.82 | G146: =(F146)-(F146*#REF!) ->  | H146: Seals | I146: 61%
A147: X | B147: 76311-660 | C147: SK2000 | D147: EA | E147: 1 | F147: $4,890.31 | G147: =(F147)-(F147*#REF!) ->  | H147: Shakers and Mixers | I147: 26%
B148: 57334-552 | C148: 57334-552 | D148: EA | E148: 1 | F148: $263.91 | G148: =(F148)-(F148*#REF!) ->  | H148: Sieves | I148: 75%
A149: X | B149: BT129230-500G | C149: 129230-500G | D149: EA | E149: 1 | F149: $110.29 | G149: =(F149)-(F149*#REF!) ->  | H149: Silicone oil | I149: 32%
B150: BDH7359-1 | C150: BDH7359-1 | D150: EA | E150: 1 | F150: $194.62 | G150: =(F150)-(F150*#REF!) ->  | H150: Silver nitrate | I150: 62%
B151: 82030-468 | C151: DHCN015 | D151: PK | E151: 50 | F151: $231.85 | G151: =(F151)-(F151*#REF!) ->  | H151: Slides | I151: 63%
B152: 97061-998 | C152: 97061-998 | D152: EA | E152: 1 | F152: $43.35 | G152: =(F152)-(F152*#REF!) ->  | H152: Sodium acetate | I152: 20%
B153: BDH7226-1 | C153: BDH7226-1 | D153: EA | E153: 1 | F153: $84.11 | G153: =(F153)-(F153*#REF!) ->  | H153: Sodium hydroxide | I153: 61%
B154: 89233-128 | C154: 89233-128 | D154: PK | E154: 300 | F154: $45.66 | G154: =(F154)-(F154*#REF!) ->  | H154: Spatulas | I154: 60%
B155: 10861-086 | C155: 840-277000 | D155: EA | E155: 1 | F155: $3,150.40 | G155: =(F155)-(F155*#REF!) ->  | H155: Spectrophotometers and Photometers | I155: 16%
B156: 470340-220 | C156: SPECT03 | D156: EA | E156: 1 | F156: $2,120.00 | G156: =(F156)-(F156*#REF!) ->  | H156: Spectrophotometers and Spectrometers | I156: 29%
B157: 46610-022 | C157: 46610-022 | D157: EA | E157: 1 | F157: $51.02 | G157: =(F157)-(F157*#REF!) ->  | H157: Spill Control Materials | I157: 60%
B158: 10806-354 | C158: 10806-354 | D158: PK | E158: 12 | F158: $185.44 | G158: =(F158)-(F158*#REF!) ->  | H158: Spreaders | I158: 55%
B159: 16002-106 | C159: 5405 | D159: EA | E159: 1 | F159: $645.18 | G159: =(F159)-(F159*#REF!) ->  | H159: Stains | I159: 74%
A160: X | B160: 76338-542 | C160: 00653-23 | D160: EA | E160: 1 | F160: $21.17 | G160: =(F160)-(F160*#REF!) ->  | H160: Standards | I160: 37%
A161: X | B161: RC58394 | C161: R5839000-120A | D161: EA | E161: 1 | F161: $40.23 | G161: =(F161)-(F161*#REF!) ->  | H161: Standards - anionic standards | I161: 60%
B162: RC3255-16 | C162: R3255000-500C | D162: EA | E162: 1 | F162: $122.59 | G162: =(F162)-(F162*#REF!) ->  | H162: Standards - environmental analysis standards | I162: 58%
B163: BDH5104-1L | C163: BDH5104-1L | D163: EA | E163: 1 | F163: $48.91 | G163: =(F163)-(F163*#REF!) ->  | H163: Startch | I163: 76%
A164: X | B164: 80094-500 | C164: 80094-500 | D164: EA | E164: 1 | F164: $953.30 | G164: =(F164)-(F164*#REF!) ->  | H164: Sterilizers | I164: 53%
A165: X | B165: 76288-172 | C165: F201A0150 | D165: EA | E165: 1 | F165: $2,542.12 | G165: =(F165)-(F165*#REF!) ->  | H165: Stirrers | I165: 35%
A166: X | B166: 76332-882 | C166: W224100-190 | D166: CS | E166: 300 | F166: $278.98 | G166: =(F166)-(F166*#REF!) ->  | H166: Stoppers | I166: 53%
B167: BDH7230-1 | C167: BDH7230-1 | D167: EA | E167: 1 | F167: $41.42 | G167: =(F167)-(F167*#REF!) ->  | H167: Sulfuric acid | I167: 59%
B168: 10035-340 | C168: 2300-917 | D168: PK | E168: 100 | F168: $260.50 | G168: =(F168)-(F168*#REF!) ->  | H168: Surface Protectors | I168: 25%
A169: X | B169: 89194-872 | C169: 25-3306-H | D169: PK | E169: 50 | F169: $36.27 | G169: =(F169)-(F169*#REF!) ->  | H169: Swabs | I169: 52%
B170: 89098-096 | C170: 89098-096 | D170: CS | E170: 3 | F170: $131.54 | G170: =(F170)-(F170*#REF!) ->  | H170: Tapes | I170: 89%
A171: X | B171: 470175-330 | C171: 160 | D171: EA | E171: 5 | F171: $32.75 | G171: =(F171)-(F171*#REF!) ->  | H171: Test Paper | I171: 44%
B172: 10204-776 | C172: 7000-33-1 | D172: EA | E172: 1 | F172: $49,866.33 | G172: =(F172)-(F172*#REF!) ->  | H172: Testing Chambers | I172: 43%
A173: X | B173: EM-TX0280-7 | C173: TX0280-7 | D173: EA | E173: 1 | F173: $852.37 | G173: =(F173)-(F173*#REF!) ->  | H173: Tetrahydrofuran | I173: 81%
B174: 10119-852 | C174: 6338000020 | D174: EA | E174: 1 | F174: $7,953.50 | G174: =(F174)-(F174*#REF!) ->  | H174: Thermal Cyclers | I174: 3%
B175: 15551-004 | C175: 15551-004 | D175: EA | E175: 1 | F175: $78.41 | G175: =(F175)-(F175*#REF!) ->  | H175: Thermometers | I175: 52%
A176: X | B176: 56221-531 | C176: 51109389 | D176: CS | E176: 480 | F176: $298.00 | G176: =(F176)-(F176*#REF!) ->  | H176: Titrators | I176: 3%
A177: X | B177: 80060-616 | C177: CG-1184-01 | D177: EA | E177: 1 | F177: $345.13 | G177: =(F177)-(F177*#REF!) ->  | H177: TLC Developing Tanks | I177: 22%
A178: X | B178: EM1.05553.0001 | C178: 1.05553.0001 | D178: EA | E178: 1 | F178: $419.09 | G178: =(F178)-(F178*#REF!) ->  | H178: TLC Plates | I178: 56%
A179: X | B179: 76628-450 | C179: E5911 | D179: EA | E179: 1 | F179: $570.00 | G179: =(F179)-(F179*#REF!) ->  | H179: Transfection Reagents | I179: 1%
B180: 95042-358 | C180: 95-0447-01 | D180: EA | E180: 1 | F180: $3,523.50 | G180: =(F180)-(F180*#REF!) ->  | H180: Transilluminators | I180: 56%
B181: 62662-026 | C181: 6900-0010 | D181: EA | E181: 1 | F181: $154.78 | G181: =(F181)-(F181*#REF!) ->  | H181: Trays/Dishes/Pots | I181: 77%
B182: RCR8688000500C | C182: R8688000-500C | D182: EA | E182: 1 | F182: $160.97 | G182: =(F182)-(F182*#REF!) ->  | H182: Trichloroacetic acid | I182: 55%
A183: X | B183: EM-TX1200-5 | C183: TX1200-5 | D183: EA | E183: 1 | F183: $96.95 | G183: =(F183)-(F183*#REF!) ->  | H183: Triethylamine | I183: 59%
B184: KT897193-0050 | C184: 897193-0050 | D184: PK | E184: 50 | F184: $178.91 | G184: =(F184)-(F184*#REF!) ->  | H184: Tubes | I184: 45%
B185: MFLX06405-06 | C185: MFLX06405-06 | D185: EA | E185: 1 | F185: $41.20 | G185: =(F185)-(F185*#REF!) ->  | H185: Tubing | I185: 31%
A186: X | B186: 10218-896 | C186: 234100-2 | D186: EA | E186: 1 | F186: $3,373.97 | G186: =(F186)-(F186*#REF!) ->  | H186: UV Crosslinkers | I186: 39%
B187: BD-367296 | C187: 367296 | D187: PK | E187: 50 | F187: $191.05 | G187: =(F187)-(F187*#REF!) ->  | H187: VACUTAINER* Safety-Lok* Blood Collection Set | I187: 53%
B188: PAA1360 | C188: A1360 | D188: EA | E188: 1 | F188: $208.25 | G188: =(F188)-(F188*#REF!) ->  | H188: Vectors, Plasmids and Libraries | I188: 11%
B189: 66008-728 | C189: 5000-0020 | D189: CS | E189: 500 | F189: $526.35 | G189: =(F189)-(F189*#REF!) ->  | H189: Vials | I189: 40%
B190: BDH1168-4LP | C190: BDH1168-4LP | D190: EA | E190: 1 | F190: $93.26 | G190: =(F190)-(F190*#REF!) ->  | H190: Water | I190: 61%
B191: 12765-600 | C191: 30390192 | D191: EA | E191: 1 | F191: $249.80 | G191: =(F191)-(F191*#REF!) ->  | H191: Weights | I191: 55%
A192: X | B192: AA31911-A1 | C192: 31911-A1 | D192: EA | E192: 1 | F192: $50.74 | G192: =(F192)-(F192*#REF!) ->  | H192: White mineral oil (petroleum) | I192: 33%
A193: X | B193: 75820-346 | C193: KNR2RB-LG-0R | D193: EA | E193: 1 | F193: $371.34 | G193: =(F193)-(F193*#REF!) ->  | H193: Workwear | I193: 42%
B194: 89370-088 | C194: 89370-088 | D194: EA | E194: 1 | F194: $235.21 | G194: =(F194)-(F194*#REF!) ->  | H194: Xylene | I194: 90%
B195: RC96501 | C195: R9650000-4A | D195: EA | E195: 1 | F195: $219.24 | G195: =(F195)-(F195*#REF!) ->  | H195: Zinc sulfate | I195: 58%

Sheet Band 2
A1: RFP20232032
A2: Attachment 1 Exhibit 2 - Band 2 Microscope Pricing - Amendment 1
A4: Instructions:
A5: The Offeror must respond with the following information (in yellow highlighted cells) for items proposed:
A6: - Discount Percent Off List: Enter minimum discount percentage that will be applied to all catalog items.
A9: Offeror Name: | B9: VWR International, LLC
A11: 1. Evaluation Plan Stage 3 Minimum Discount Off List
A13: Minium Discount Percent Off List: | C13: %
A14: Product | B14: Description
A15: 470014-512 | B15: MICROSCOPE HM STD. CL 4X 10X 40X | C15: 56.42%
A16: 470014-544 | B16: DIG. MICROSCOPE HM SERIES STD. COMP CL | C16: 53.74%
A17: 470014-550 | B17: DIG. MICROSCOPE AP 3000 100X KOEHLER | C17: 53.56%
A18: 470014-534 | B18: MICROSCOPE AP RESEARCH TRINOC | C18: 55.95%
A19: 89404-468 | B19: VWR COMPOUND TRINOCULAR | C19: 45.65%
A20: 89404-478 | B20: VWR ZOOM BINOCULAR | C20: 54.37%
A21: 470346-268 | B21: ZOOM STEREO WITH 8 IN TABLET | C21: 34.32%
A22: 470222-468 | B22: MICROSCOPE DIGITAL TABLET SK100 SERIES | C22: 37.26%
A23: 470145-556 | B23: MICROSCOPE POLARIZING BOREAL | C23: 51.52%
